Cogmind - Beta 16.1 @@@ ROGUE MODE // 2026.03.27 @ 01:25:57 Player: FL-IST Result: Destroyed by Swarm Drone with Compact Gauss Rifle Performance ------------- Evolutions (7) 3500 Regions Visited (30) 6000 Robots Destroyed (261) 1305 Value Destroyed (7063) 7063 Prototype IDs (48) 960 Alien Tech Used (2) 400 Bonus (5306) 5306 TOTAL SCORE: 24534 Bonus ------- High Alert Combat Kills 222 Follower Combat Kills 2622 Hunted by Unchained 500 Network Hubs Disabled 200 Registered with UFD 300 Met Optimus in HQ 500 Met Zhirov 300 Met Warlord at Base 500 MAIN.C Attacked Warlord 500 Warlord Defense Kills 134 Built Enhanced Grunts 300 Met R17 at Cetus 500 Met R17 at Research 2000 Friendly Fire -3272 Cogmind --------- Core Integrity 0/1300 Matter 300/300 Energy 70/100 System Corruption 22% Temperature Cool (2) Movement Hovering (60) Location -3/Protoforge Parts ------- > --- POWER (2) -------- (None) > --- PROPULSION (6) --- Improved Antigrav System > --- UTILITY (11) ----- Experimental Signal Interpreter Jamming Amplifier > --- WEAPON (2) ------- (None) > --- INVENTORY (5) ---- Phase Armor Core Cannon Peak State ------------ > --- POWER ------------ Light Antimatter Reactor Micro Antimatter Reactor > --- PROPULSION ------- Cooled Gravmag System Cooled Gravmag System Cooled Gravmag System Cooled Gravmag System Cooled Gravmag System Cooled Gravmag System > --- UTILITY ---------- Experimental Cooling System Medium Storage Unit Enhanced Optical Array Experimental Sensor Array Experimental Signal Interpreter Long-range Terrain Scanner Surveybot 17 Chip Transmission Jammer Jamming Amplifier Improved Utility Shielding Advanced Hacking Suite > --- WEAPON ----------- Core Cannon > --- INVENTORY -------- Experimental Sensor Array Advanced Weapon Cycler Phase Armor Improved Trap Extractor Dimensional Node Initializer Transdimensional Reconstructor Subatomic Replicator [Rating: 157] Favorites ----------- Power Improved Ion Engine Engine Improved Ion Engine Power Core Micro Fission Core Reactor Light Antimatter Reactor Propulsion Armored Treads Treads Armored Treads Leg Advanced Myomer Leg Wheel Wheel Hover Unit Cooled Gravmag System Flight Unit VTOL Module Utility Huge Storage Unit Device Heat Sink Storage Huge Storage Unit Processor Experimental Signal Interpreter Hackware Hacking Suite Protection Medium Armor Plating Weapon Heavy Particle Cannon Energy Gun Medium Laser Energy Cannon Heavy Particle Cannon Ballistic Gun Assault Rifle Ballistic Cannon Mass Driver Launcher Grenade Launcher Special Weapon CPS Tube Slashing Weapon Scythe Special Melee Weapon Advanced Datajack Build | -11 -10 -10 -9 -9 -9 -8 -8 -8 -8 -8 -6 -6 -6 -6 -6 -5 -5 -5 -5 -5 -5 -4 -4 -4 -4 -4 -3 -3 -3 -3 ------- Run | Yrd Mat Min Mat Min Exi Min Mat Sto Rec Scr Fac Ext Cet Arc Hub Fac Was Fac Upp Upp War Pro Fac Upp Upp Zhi Pro Res Qua Frg Slots Evolved 14 | . . . 2 . . . 2 . . . 4 . . . . 2 . . . . . . 2 . . . . 2 . . Power 1 | . . . . . . . . . . . . . . . . . . . . . . . . . . . . 1 . . Propulsion 4 | . . . 1 . . . 1 . . . 1 . . . . 1 . . . . . . . . . . . . . . Utility 9 | . . . 1 . . . 1 . . . 3 . . . . 1 . . . . . . 2 . . . . 1 . . Weapon . | . . . . . . . . . . . . . . . . . . . . . . . . . . . . . . . Parts Attached 180 | 7 7 3 17 . . 1 12 13 3 11 18 3 1 11 1 5 1 22 1 2 4 1 12 1 2 4 2 7 2 6 Power 19 | 1 2 . 3 . . . 2 2 . . 1 1 . 1 . 1 . 1 . . . . . 1 . 1 1 1 . . Engine 11 | 1 1 . 3 . . . . 2 . . 1 1 . 1 . 1 . . . . . . . . . . . . . . Core 5 | . 1 . . . . . 2 . . . . . . . . . . 1 . . . . . 1 . . . . . . Reactor 3 | . . . . . . . . . . . . . . . . . . . . . . . . . . 1 1 1 . . Propulsion 55 | 2 1 2 5 . . . 4 6 . 4 1 . . 6 . 2 . 10 . 1 1 . 6 . . 1 . 1 . 2 Treads 17 | 2 . 1 4 . . . 4 6 . . . . . . . . . . . . . . . . . . . . . . Leg 2 | . . . . . . . . . . . . . . . . . . . . 1 . . . . . 1 . . . . Wheel 7 | . 1 1 1 . . . . . . . . . . . . 2 . 2 . . . . . . . . . . . . Hover 18 | . . . . . . . . . . . . . . 6 . . . 3 . . . . 6 . . . . 1 . 2 Flight 11 | . . . . . . . . . . 4 1 . . . . . . 5 . . 1 . . . . . . . . . Utility 74 | 2 2 1 6 . . . 5 2 3 4 12 1 1 2 1 1 . 10 . 1 2 1 6 . 2 2 1 3 2 1 Device 33 | 1 1 1 2 . . . 1 1 1 2 5 . . 2 1 1 . 5 . 1 2 . 1 . 2 . . 2 . 1 Storage 4 | 1 1 . 1 . . . . . . 1 . . . . . . . . . . . . . . . . . . . . Processor 9 | . . . . . . . 1 . 2 1 1 . . . . . . . . . . . 1 . . . 1 1 1 . Hackware 18 | . . . . . . . . . . . 6 1 . . . . . 5 . . . 1 4 . . 1 . . . . Protection 10 | . . . 3 . . . 3 1 . . . . 1 . . . . . . . . . . . . 1 . . 1 . Artifact . | . . . . . . . . . . . . . . . . . . . . . . . . . . . . . . . Weapon 32 | 2 2 . 3 . . 1 1 3 . 3 4 1 . 2 . 1 1 1 1 . 1 . . . . . . 2 . 3 Energy Gun 4 | 1 1 . . . . . . . . 1 . . . . . . . . . . . . . . . . . . . 1 Energy Cannon 11 | . 1 . 2 . . . 1 3 . . 1 . . 1 . . . . . . . . . . . . . 1 . 1 Ballistic Gun 3 | 1 . . . . . . . . . 1 . . . . . . . . . . . . . . . . . . . 1 Ballistic Cannon 1 | . . . . . . . . . . . . . . . . . . 1 . . . . . . . . . . . . Launcher 4 | . . . 1 . . 1 . . . . 1 . . . . . 1 . . . . . . . . . . . . . Special Weapon 5 | . . . . . . . . . . 1 1 . . . . 1 . . 1 . . . . . . . . 1 . . Impact Weapon . | . . . . . . . . . . . . . . . . . . . . . . . . . . . . . . . Slashing Weapon 3 | . . . . . . . . . . . 1 1 . . . . . . . . 1 . . . . . . . . . Piercing Weapon . | . . . . . . . . . . . . . . . . . . . . . . . . . . . . . . . Special Melee Weapon 1 | . . . . . . . . . . . . . . 1 . . . . . . . . . . . . . . . . Unidentified Prototypes 18 | . . . . . . . . 3 . . . . 1 2 . . 1 1 . . 3 . 1 . . 4 . . . 2 Parts Lost 64 | . 2 1 5 . . . 7 3 1 . . 2 1 . 3 1 . 16 . 1 . . . . . . . 1 . 20 Power 9 | . 1 . 2 . . . 1 1 . . . . . . 1 . . 1 . . . . . . . . . . . 2 Propulsion 31 | . 1 1 2 . . . 3 1 . . . 1 1 . 2 1 . 9 . 1 . . . . . . . 1 . 7 Utility 16 | . . . 1 . . . 2 1 1 . . . . . . . . 4 . . . . . . . . . . . 7 Weapon 8 | . . . . . . . 1 . . . . 1 . . . . . 2 . . . . . . . . . . . 4 Highest Loss Streak 17 | . 2 1 2 . . . 6 2 1 . . 1 1 . 3 1 . 13 . 1 . . . . . . . 1 . 17 To Critical Strikes . | . . . . . . . . . . . . . . . . . . . . . . . . . . . . . . . Average Backups 14 | 2 7 8 11 15 16 18 22 24 24 22 9 9 9 9 10 10 10 9 10 9 9 10 9 10 10 10 10 9 8 7 Power . | . . . . 1 1 1 1 . 1 . . 1 1 1 . . . . . . . . . 1 1 1 1 . . . Propulsion 3 | . 2 . 2 4 4 5 6 7 7 5 . . . . . . . . . . . . . 1 1 1 1 1 . . Utility 8 | . 2 4 4 7 7 7 11 13 13 13 8 7 7 8 8 9 9 8 8 7 8 9 7 7 7 6 6 5 4 3 Weapon 2 | . 2 3 3 3 4 4 3 3 3 2 1 1 . . 1 1 1 . 1 1 . . . . . . . . . 1 Tool/Special . | . . . . . . . . . . . . . . . . . . . . . . . . . . . . . . . Unused Backups 35 | . 3 1 4 . . . . 1 1 5 7 . . . . . . 2 . . . . 1 . . . 1 3 1 5 Power 1 | . . . . . . . . . . . . . . . . . . . . . . . . . . . 1 . . . Propulsion 7 | . 2 . 2 . . . . 1 . . . . . . . . . . . . . . . . . . . 1 1 . Utility 17 | . . . . . . . . . 1 4 7 . . . . . . 2 . . . . 1 . . . . . . 2 Weapon 5 | . 1 1 2 . . . . . . 1 . . . . . . . . . . . . . . . . . . . . Tool/Special 5 | . . . . . . . . . . . . . . . . . . . . . . . . . . . . 2 . 3 Average Slot Usage (%) 95 | . 99 99 95 100 100 100 95 95 99 96 97 89 79 88 99 78 88 86 89 92 92 94 94 100 100 99 100 99 99 84 Engine 7 | . 13 14 10 11 11 11 5 7 9 9 6 5 5 6 5 2 5 3 . . . . . . . . . . . . Treads 19 | . 26 15 28 33 33 33 32 32 35 29 . . . . . . . . . . . . . . . . . . . . Wheel 1 | . 1 12 1 . . . . . . . . . . . . 6 11 6 . . . . . . . . . . . . Hover 4 | . . . . . . . . . . . . . . 16 32 11 11 11 . . . . 10 31 31 31 31 27 28 22 Flight 6 | . . . . . . . . . . 6 32 30 20 9 . . . 7 29 27 28 29 17 . . . . . . . Device 11 | . 14 14 13 11 11 11 12 8 8 14 11 6 4 2 6 8 11 12 17 17 17 17 12 10 10 9 10 13 16 16 Storage 8 | . 14 14 11 11 11 11 9 9 9 8 6 6 6 6 6 5 5 5 5 5 5 5 5 5 5 5 5 4 4 3 Processor 6 | . . . . . . . 3 9 9 9 12 13 13 10 6 5 5 5 5 5 5 5 7 10 10 10 10 13 16 17 Hackware 6 | . . . . . . . . . . . 14 20 20 20 20 17 17 16 17 17 17 17 25 26 26 26 26 19 11 3 Protection 4 | . . . 7 11 11 11 10 9 9 3 . . 1 5 6 5 5 2 . . . . . . . . . . 1 3 Energy Gun 1 | . 15 14 1 . . . . . . . . . . . . . . . . . . . . . . . . . . . Energy Cannon 10 | . 5 14 19 17 22 21 15 18 18 14 1 . . . . . . . . . . . . . . . . 3 4 3 Slashing Weapon 1 | . . . . . . . . . . . 2 4 5 6 6 4 . 4 5 5 5 5 5 5 5 5 5 3 4 3 Peak Build Rating 157 | 7 9 9 25 25 25 26 33 39 37 39 59 60 55 75 75 69 73 80 81 84 90 92 127 125 125 129 129 145 143 157 Average Rating 45 | 5 7 8 20 24 25 25 29 36 36 36 52 52 46 60 74 63 68 64 76 80 88 91 112 125 124 126 128 140 142 121 On Entrance 65 | . 7 8 9 25 25 25 26 28 35 37 36 57 47 55 75 58 69 69 74 81 79 90 92 125 125 125 129 129 141 143 Avg Prop Armor Cover (%) 9 | . 12 12 11 . . . . . . . . . . 3 . 8 7 7 . . . . 5 . . . . . . 10 Naked Turns . | . . . . . . . . . . . . . . . . . . . . . . . . . . . . . . . Heaviest Build 112 | 15 21 21 107 107 107 107 112 111 110 110 88 30 37 37 31 44 44 44 22 24 28 28 30 38 39 42 42 58 51 51 Greatest Support 96 | 40 40 40 60 60 60 60 82 80 80 80 32 25 20 45 45 29 29 39 28 37 30 39 66 96 66 66 96 81 96 96 Greatest Overweight (x) 5 | . 2 2 2 1 1 1 1 5 1 4 4 1 2 3 . 3 1 4 . . . . 2 . . . . . . 4 Average Overweight (x) . | . . 1 . 1 1 1 1 1 1 . . . 1 . . 1 1 . . . . . . . . . . . . . Largest Inventory Capacity 25 | 8 10 10 25 25 25 25 25 25 25 25 25 10 10 10 10 10 10 10 10 10 10 10 10 10 10 10 10 10 10 10 Average Capacity 17 | 7 9 10 18 25 25 25 25 25 25 23 10 10 10 10 10 10 10 10 10 10 10 10 10 10 10 10 10 10 10 9 Most Carried 25 | 4 10 10 15 16 16 20 25 25 25 25 15 10 10 10 10 10 10 10 10 10 10 10 10 10 10 10 10 10 10 10 Average Carried 14 | 2 7 9 11 15 16 18 22 24 24 22 9 9 9 9 9 9 10 9 9 9 9 9 9 10 10 9 9 9 9 9 Final Capacity 25 | 8 10 10 25 25 25 25 25 25 25 25 10 10 10 10 10 10 10 10 10 10 10 10 10 10 10 10 10 10 10 5 Final Carried 25 | 4 8 10 15 16 16 20 21 25 25 15 10 10 10 10 10 10 10 10 10 10 10 10 10 10 10 10 10 9 10 4 Class Distribution -------------------- 57% | Mutant 10% | Hacker-Scout 7% | Hacker-Mutant 7% | Commander-Mutant 3% | Wizard-Scout 3% | Hacker-Ninja Dominant Class ---------------- Mutant | -10/Materials Mutant | -10/Mines Mutant | -9/Materials Mutant | -9/Mines Mutant | -9/Exiles Mutant | -8/Mines Mutant | -8/Materials Commander-Mutant | -8/Storage Mutant | -8/Recycling Mutant | -8/Scraptown Hacker-Scout | -6/Factory Hacker-Scout | -6/Extension Commander-Mutant | -6/Cetus Hacker-Mutant | -6/Archives Scavenger-Mutant | -6/Hub_04(d) Hacker-Mutant | -5/Factory Hacker-Mutant | -5/Waste Hacker-Mutant | -5/Factory Hacker-Scout | -5/Upper Caves Hacker-Scout | -5/Upper Caves Hacker-Scout | -5/Warlord Hacker-Scout | -4/Proximity Caves Wizard-Scout | -4/Factory Wizard-Scout | -4/Upper Caves Wizard-Scout | -4/Upper Caves Wizard-Scout | -4/Zhirov Wizard-Scout | -3/Proximity Caves Hacker-Ninja | -3/Research Ninja | -3/Quarantine Ninja | -3/Protoforge Resources | -11 -10 -10 -9 -9 -9 -8 -8 -8 -8 -8 -6 -6 -6 -6 -6 -5 -5 -5 -5 -5 -5 -4 -4 -4 -4 -4 -3 -3 -3 -3 ----------- Run | Yrd Mat Min Mat Min Exi Min Mat Sto Rec Scr Fac Ext Cet Arc Hub Fac Was Fac Upp Upp War Pro Fac Upp Upp Zhi Pro Res Qua Frg Matter Collected 4913 | 248 199 50 210 40 . 64 590 200 40 70 646 585 120 145 40 59 . 648 . 129 103 10 120 38 30 . 92 224 . 213 Remotely . | . . . . . . . . . . . . . . . . . . . . . . . . . . . . . . . Salvage Created 10851 | 126 1138 240 1612 48 . 265 1549 861 383 . 768 1049 54 164 21 98 . 910 . 20 31 . 99 87 63 . . 1028 . 237 Parts 538 | 10 51 21 75 6 . 9 77 60 11 . 33 33 3 15 3 10 . 57 . 3 . . 4 4 2 . . 40 . 11 Haulers Intercepted 19 | . 2 . 1 . . . 2 5 . . 1 . . . . . . 1 . . . . 1 . . . . 6 . . Recyclers Shooed 11 | . 3 1 1 . . 1 . . . . 2 1 . . . . . 2 . . . . . . . . . . . . Parts Field Recycled . | . . . . . . . . . . . . . . . . . . . . . . . . . . . . . . . Retrieved Matter . | . . . . . . . . . . . . . . . . . . . . . . . . . . . . . . . Parts Self-Destructed 14 | . . . . . . . . . . . . . . . . . . . . 12 . . . . 2 . . . . . Prevented 2 | . . . . . . . . . . . . . . . . . . . . 2 . . . . . . . . . . Parts Restored . | . . . . . . . . . . . . . . . . . . . . . . . . . . . . . . . Kills | -11 -10 -10 -9 -9 -9 -8 -8 -8 -8 -8 -6 -6 -6 -6 -6 -5 -5 -5 -5 -5 -5 -4 -4 -4 -4 -4 -3 -3 -3 -3 ------- Run | Yrd Mat Min Mat Min Exi Min Mat Sto Rec Scr Fac Ext Cet Arc Hub Fac Was Fac Upp Upp War Pro Fac Upp Upp Zhi Pro Res Qua Frg Combat Hostiles Destroyed 128 | . 17 5 26 2 . 3 34 11 4 . 3 5 . . . 1 . 9 . . 1 . . . . . . 4 . 3 Melee 9 | . . . . . . . . . . . . 1 . . . . . 5 . . . . . . . . . . . 3 Guns 15 | . 8 3 4 . . . . . . . . . . . . . . . . . . . . . . . . . . . Cannons 66 | . 8 2 17 2 . 1 17 11 3 . . . . . . . . . . . 1 . . . . . . 4 . . AOE 33 | . . . 2 . . 2 17 . . . 3 4 . . . 1 . 4 . . . . . . . . . . . . Classes Destroyed 20 | 2 8 . 3 2 . . 2 . . . . . . . . . . 1 . 1 . . . 1 . . . . . . Worker 19 | . 3 . . . . . 1 2 . . 4 2 . . . 1 . 3 . . . . . . . . . 3 . . Builder 16 | . 1 2 2 1 . . 2 . . . 1 2 . . . . . 4 . . . . . . . . . 1 . . Tunneler 12 | 3 . 2 . 1 . 1 . . . . 1 1 . . . 2 . 1 . . . . . . . . . . . . Hauler 19 | . 2 . 1 . . . 2 5 . . 1 . . . . . . 1 . . . . 1 . . . . 6 . . Recycler 25 | 1 2 1 5 . . 1 . 1 2 . 3 6 . . . . . 3 . . . . . . . . . . . . Minesweeper 1 | . . . . . . . . . . . . . . . . . . . . 1 . . . . . . . . . . Mechanic 4 | . 1 . 1 . . . 1 1 . . . . . . . . . . . . . . . . . . . . . . Operator 16 | . 2 . 2 . . . 1 . . . 2 . . 5 1 1 . 2 . . . . . . . . . . . . Watcher 18 | . 3 . 4 . . . 2 . . . 1 3 1 . . . . 1 . . . . . . . . . 2 . 1 Swarmer 22 | . 3 5 4 . . . . . . . 3 . . . . 1 . 5 . . . . . . . . . 1 . . Grunt 61 | . 14 . 12 . . 4 22 2 1 . . 3 . . . . . 2 . . 1 . . . . . . . . . Brawler 5 | . . . 1 . . . 4 . . . . . . . . . . . . . . . . . . . . . . . Duelist 2 | . . . 1 . . . 1 . . . . . . . . . . . . . . . . . . . . . . . Protector 2 | . . . . . . . 2 . . . . . . . . . . . . . . . . . . . . . . . Sentry 28 | . . . 8 . . . 4 9 4 . . 2 . . . . . . . . . . . . . . . . . 1 Demolisher 1 | . . . . 1 . . . . . . . . . . . . . . . . . . . . . . . . . . Hunter 3 | . . . . . . . 1 . . . . . . . . . . . . . . . . . . . . 2 . . Programmer 5 | . . . . . . . . . . . . . . . . . . 2 . . . . . . . . . 1 . 2 Samaritan 2 | . . . . . . . . . . . . . . . . . . . . . . . . 2 . . . . . . Assembled 1 | . . . . 1 . . . . . . . . . . . . . . . . . . . . . . . . . . Butcher 1 | . . . . . . . . . . . . 1 . . . . . . . . . . . . . . . . . . Best Kill Streak 8 | 4 4 3 5 1 . 3 6 4 2 . 3 8 1 2 1 2 . 6 . 1 1 . 1 . . . . 5 . 3 Combat Bots Only 5 | . 3 3 5 1 . 3 5 3 1 . 3 2 . . . 1 . 3 . . 1 . . . . . . 2 . 3 Max Kills in Single Turn 3 | 1 1 1 2 1 . 2 3 1 1 . 2 2 1 1 1 2 . 3 . 1 1 . 1 1 . . . 1 . 1 Gunslinging . | . . . . . . . . . . . . . . . . . . . . . . . . . . . . . . . Exploded 2 | . . . 1 . . 2 2 . . . 2 1 . . . 1 . 2 . . . . . . . . . . . . Melee 1 | . . . . . . . . . . . . 1 . . . . . 1 . . . . . . . . . . . 1 Uniques/NPCs Destroyed 1 | . . . . . . . . . . . . . 1 . . . . . . . . . . . . . . . . . A7 (-6/Cetus) Combat | -11 -10 -10 -9 -9 -9 -8 -8 -8 -8 -8 -6 -6 -6 -6 -6 -5 -5 -5 -5 -5 -5 -4 -4 -4 -4 -4 -3 -3 -3 -3 -------- Run | Yrd Mat Min Mat Min Exi Min Mat Sto Rec Scr Fac Ext Cet Arc Hub Fac Was Fac Upp Upp War Pro Fac Upp Upp Zhi Pro Res Qua Frg Hostile Shots Fired 788 | . 52 14 112 3 . 22 132 50 12 . 3 58 4 . 38 3 . 124 . 1 . 3 . 4 . . 6 12 2 133 Missed 240 | . 10 6 25 . . 9 31 20 2 . 2 35 1 . 20 2 . 27 . 1 . 1 . 4 . . 4 4 . 36 Hits 548 | . 42 8 87 3 . 13 101 30 10 . 1 23 3 . 18 1 . 97 . . . 2 . . . . 2 8 2 97 Melee 22 | . . . 4 . . . 12 . . . . . . . . . . 2 . . . . . . . . . . . 4 Projectile 526 | . 42 8 83 3 . 13 89 30 10 . 1 23 3 . 18 1 . 95 . . . 2 . . . . 2 8 2 93 AOE 4 | . . . . 3 . . . . . . . . . . . . . . . . 1 . . . . . . . . . Critical Strikes 15 | . . . 4 . . . 2 2 . . . . . . 1 . . 2 . . . . . . . . . 1 . 3 Part Disruptions 1 | . . . . . . . . . . . . . . . . . . . . 1 . . . . . . . . . . Damage Taken 10207 | . 528 60 1147 151 . 189 1862 424 148 . 36 270 65 . 322 117 . 1717 . 64 39 33 . . . . 45 198 . 2792 Core 2439 | . 71 7 158 48 . . 120 29 . . . 97 50 . 18 34 . 488 . . . 17 . . . . . . . 1302 Absorbed by Shields 100 | . . . . . . . . . . . . 29 39 . . . . . . . . . . . . . . . . 32 Redirected to Shielding 109 | . . . . . . . . . . . . . . . . . . . . . . . . . . . . . . 109 Regen/Repaired (Parts) 492 | . . . . . . . 119 . . . . . 23 . 8 120 44 91 . . 58 . . . . . . 29 . . Core Remaining (%) 73 | 100 . 68 . . . 48 . . . 72 . . . . 80 . . . . . . 46 . . . . 100 . . . Volleys Fired 553 | 15 81 21 96 8 . 14 88 47 15 . 62 32 4 . . 1 . 6 . . 5 . 3 1 1 . 7 24 4 18 Largest 2 | 2 2 2 2 2 . 2 2 2 2 . 2 1 1 . . 1 . 1 . . 1 . 1 1 1 . 1 1 1 1 Hottest 175 | 70 110 110 150 150 . 150 150 175 175 . 85 85 43 . . 43 . 47 . . 47 . 47 47 47 . 47 113 113 113 Shots Fired 924 | 30 161 41 191 16 . 28 164 94 30 . 63 32 4 . . 1 . 6 . . 5 . 3 1 1 . 7 24 4 18 Gun 221 | 30 128 20 35 . . . . . . . . . . . . . . . . . . . . . . . . . . 8 Cannon 635 | . 33 21 153 14 . 24 139 94 30 . 59 11 . . . . . 3 . . 5 . 3 1 1 . 7 23 4 10 Launcher 65 | . . . 3 2 . 4 25 . . . 2 21 4 . . 1 . 3 . . . . . . . . . . . . Special 3 | . . . . . . . . . . . 2 . . . . . . . . . . . . . . . . 1 . . Kinetic 67 | 15 24 . . . . . . . . . . . . . . . . 3 . . 5 . 3 1 1 . 7 . . 8 Thermal 789 | 15 137 41 188 14 . 24 139 94 30 . 59 11 . . . . . . . . . . . . . . . 23 4 10 Explosive 65 | . . . 3 2 . 4 25 . . . 2 21 4 . . 1 . 3 . . . . . . . . . . . . Electromagnetic . | . . . . . . . . . . . . . . . . . . . . . . . . . . . . . . . Robot Hit Streak 21 | 5 12 9 21 4 . 6 14 14 7 . 11 7 . . . 5 . 6 . . 11 . . . . . 14 16 . 5 Robot Miss Streak 9 | 3 3 2 9 3 . 3 3 4 2 . 2 1 . . . . . . . . . . . . . . . 2 . 1 Penetration Max 1 | . . . . . . . . . . . . . . . . . . . . . . . . . . . . . . 1 Secondary Targets . | . . . . . . . . . . . . . . . . . . . . . . . . . . . . . . . Shots Hit Robots 687 | 15 103 25 116 8 . 18 102 59 15 . 29 24 19 18 2 7 . 34 . 1 5 . 3 2 2 . 3 45 . 32 Core Hits 375 | 5 48 11 47 4 . 12 73 23 6 . 14 36 20 4 2 5 . 27 . 1 2 . 2 1 1 . 1 19 . 11 Critical Kills 3 | . . . 2 . . . . . . . 1 . . . . . . . . . . . . . . . . . . . Critical Parts Destroyed 1 | 1 . . . . . . . . . . . . . . . . . . . . . . . . . . . . . . Critical Strikes 34 | 2 9 2 2 . . . . . . . 1 1 2 1 . . . 6 . . . . . . . . . 3 . 5 Burn 12 | 1 9 2 . . . . . . . . . . . . . . . . . . . . . . . . . . . . Meltdown 3 | . . . 2 . . . . . . . 1 . . . . . . . . . . . . . . . . . . . Destroy 1 | 1 . . . . . . . . . . . . . . . . . . . . . . . . . . . . . . Sever 18 | . . . . . . . . . . . . 1 2 1 . . . 6 . . . . . . . . . 3 . 5 Melee Attacks 316 | . . . . . . . . . . . 19 20 19 21 9 14 . 75 1 1 4 . 10 4 3 . 8 58 6 44 Impact . | . . . . . . . . . . . . . . . . . . . . . . . . . . . . . . . Slashing 312 | . . . . . . . . . . . 19 20 19 17 9 14 . 75 1 1 4 . 10 4 3 . 8 58 6 44 Piercing . | . . . . . . . . . . . . . . . . . . . . . . . . . . . . . . . Sneak Attacks 77 | . . . . . . . . . . . 7 2 19 14 . 6 . 14 . 1 . . 1 2 . . . 11 . . Combat Hostiles . | . . . . . . . . . . . . . . . . . . . . . . . . . . . . . . . Follow-up Attacks . | . . . . . . . . . . . . . . . . . . . . . . . . . . . . . . . Damage Inflicted 26101 | 178 1459 365 2712 205 . 671 4337 1727 547 . 1391 3048 1413 959 92 575 . 2384 . 72 174 . 161 151 116 . 34 2206 . 1124 Guns 1951 | 178 1048 187 337 . . . . . . . . . . . . . . . . . . . . . . . . . . 201 Cannons 9244 | . 396 178 2190 200 . 427 2238 1718 547 . 492 29 . . . . . . . . 174 . . . . . 34 621 . . Explosions 6757 | . . . 183 5 . 237 2099 . . . 229 2455 540 . . 151 . 858 . . . . . . . . . . . . Melee 8101 | . . . . . . . . . . . 670 564 873 959 77 424 . 1526 . 72 . . 161 151 116 . . 1585 . 923 Ramming 48 | . 15 . 2 . . 7 . 9 . . . . . . 15 . . . . . . . . . . . . . . . Kinetic 682 | 79 194 . . . . . . . . . . . . . . . . . . . 174 . . . . . 34 . . 201 Thermal 10903 | 99 1250 365 2527 200 . 427 2441 1718 547 . 492 29 . . . . . 187 . . . . . . . . . 621 . . Explosive 6367 | . . . 183 5 . 237 1896 . . . 229 2455 540 . . 151 . 671 . . . . . . . . . . . . Electromagnetic . | . . . . . . . . . . . . . . . . . . . . . . . . . . . . . . . Impact . | . . . . . . . . . . . . . . . . . . . . . . . . . . . . . . . Slashing 8101 | . . . . . . . . . . . 670 564 873 959 77 424 . 1526 . 72 . . 161 151 116 . . 1585 . 923 Piercing . | . . . . . . . . . . . . . . . . . . . . . . . . . . . . . . . Highest Corruption 22 | . . . . . . . . 1 1 . 1 1 1 1 1 . 9 15 10 10 10 . . . . . . . . 22 Average Corruption 3 | . . . . . . . . 1 1 . 1 1 1 1 1 . 9 10 10 10 10 . . . . . . . . 12 Corruption Purged 6 | . . . . . . . . . . . . . . 1 . . . 5 . . . . . . . . . . . . Corruption Blocked . | . . . . . . . . . . . . . . . . . . . . . . . . . . . . . . . Effects 132 | . . . . . . . . 2 13 . 8 10 4 2 . . 2 60 5 17 1 . . . . . . . . 8 Message Errors 40 | . . . . . . . . 1 . . 5 2 1 . . . 1 19 2 7 . . . . . . . . . 2 Matter Fused 26 | . . . . . . . . . 2 . . 4 1 1 . . . 12 1 2 1 . . . . . . . . 2 Heat Flow Errors 16 | . . . . . . . . . 2 . 1 . . . . . . 9 1 3 . . . . . . . . . . Energy Discharges 13 | . . . . . . . . 1 . . . 2 2 . . . . 6 . 1 . . . . . . . . . 1 Parts Rejected 3 | . . . . . . . . . 1 . . . . . . . . 1 . . . . . . . . . . . 1 Data Loss (minor) 12 | . . . . . . . . . 2 . . 1 . 1 . . 1 4 . 1 . . . . . . . . . 2 Data Loss (major) 13 | . . . . . . . . . 2 . 2 1 . . . . . 7 . 1 . . . . . . . . . . Misfires 1 | . . . . . . . . . 1 . . . . . . . . . . . . . . . . . . . . . Alerts 6 | . . . . . . . . . 2 . . . . . . . . 2 1 1 . . . . . . . . . . Misdirections 1 | . . . . . . . . . . . . . . . . . . . . 1 . . . . . . . . . . Weapon Failures 1 | . . . . . . . . . 1 . . . . . . . . . . . . . . . . . . . . . Overload Shots . | . . . . . . . . . . . . . . . . . . . . . . . . . . . . . . . Overflow Damage 1751 | . . . 40 . . 10 121 10 5 . 293 159 . 307 . 180 . 304 . . . . . 70 12 . . 207 . 33 Projectiles 123 | . . . 40 . . 10 25 10 5 . 8 . . . . . . . . . . . . . . . . 25 . . Explosions 338 | . . . . . . . 96 . . . 42 73 . . . . . 127 . . . . . . . . . . . . Melee 1290 | . . . . . . . . . . . 243 86 . 307 . 180 . 177 . . . . . 70 12 . . 182 . 33 Knockbacks 1 | . . . . . . . . . . . . . . . . . . . . . 1 . . . . . . . . . Impact . | . . . . . . . . . . . . . . . . . . . . . . . . . . . . . . . Kinetic 1 | . . . . . . . . . . . . . . . . . . . . . 1 . . . . . . . . . Secondary . | . . . . . . . . . . . . . . . . . . . . . . . . . . . . . . . Self-Inflicted Damage 238 | . 2 . . 35 . . 67 . . . 19 19 . . 7 . . 89 . . . . . . . . . . . . Shots 7 | . . . . 1 . . 2 . . . 1 1 . . . . . 2 . . . . . . . . . . . . Rammed 8 | . 2 . 1 . . 1 . 2 . . . . . . 2 . . . . . . . . . . . . . . . Targets Rammed 9 | . 2 . 1 . . 1 . 3 . . . . . . 2 . . . . . . . . . . . . . . . Kicked . | . . . . . . . . . . . . . . . . . . . . . . . . . . . . . . . Crushed 1 | . . . . . . . . 1 . . . . . . . . . . . . . . . . . . . . . . Highest Temperature 371 | 72 371 192 323 315 . 351 315 328 241 . 240 170 . . . . . 288 293 190 5 129 . . . . . 80 . . Average Temperature 86 | 36 118 61 91 119 . 110 90 74 59 . 62 70 . . . . . 101 139 92 5 86 . . . . . 27 . . Received Heat Transfer 2408 | . 297 . 456 . . 117 792 216 45 . . 79 . . 84 . . 66 . . . . . . . . . 67 . 189 Effects 4 | . . . 3 . . . . . . . . . . . . . . 1 . . . . . . . . . . . . Energy Bleed 1 | . . . . . . . . . . . . . . . . . . 1 . . . . . . . . . . . . Interference 3 | . . . 3 . . . . . . . . . . . . . . . . . . . . . . . . . . . Siege Activations . | . . . . . . . . . . . . . . . . . . . . . . . . . . . . . . . Martial Activations . | . . . . . . . . . . . . . . . . . . . . . . . . . . . . . . . Shielding Activations . | . . . . . . . . . . . . . . . . . . . . . . . . . . . . . . . Robots Disrupted . | . . . . . . . . . . . . . . . . . . . . . . . . . . . . . . . Combat Hostiles . | . . . . . . . . . . . . . . . . . . . . . . . . . . . . . . . Robots Corrupted . | . . . . . . . . . . . . . . . . . . . . . . . . . . . . . . . Combat Hostiles . | . . . . . . . . . . . . . . . . . . . . . . . . . . . . . . . Parts Fried . | . . . . . . . . . . . . . . . . . . . . . . . . . . . . . . . Impact Corruptions . | . . . . . . . . . . . . . . . . . . . . . . . . . . . . . . . Robots Melted 6 | . 1 . 3 . . . . . 1 . 1 . . . . . . . . . . . . . . . . . . . Combat Hostiles 5 | . 1 . 3 . . . . . 1 . . . . . . . . . . . . . . . . . . . . . Parts Melted 28 | 1 8 1 8 . . . 2 2 1 . 3 . . . . . . 1 . . . . . . . . . 1 . . Heat Transferred 18222 | 370 3959 1073 4366 296 . 629 3295 2279 671 . 592 37 . . . . . 100 . . . . . . . . . 555 . . Parts Sabotaged . | . . . . . . . . . . . . . . . . . . . . . . . . . . . . . . . Parts Stolen . | . . . . . . . . . . . . . . . . . . . . . . . . . . . . . . . Parts Stripped . | . . . . . . . . . . . . . . . . . . . . . . . . . . . . . . . Power Chain Reactions . | . . . . . . . . . . . . . . . . . . . . . . . . . . . . . . . Alert | -11 -10 -10 -9 -9 -9 -8 -8 -8 -8 -8 -6 -6 -6 -6 -6 -5 -5 -5 -5 -5 -5 -4 -4 -4 -4 -4 -3 -3 -3 -3 ------- Run | Yrd Mat Min Mat Min Exi Min Mat Sto Rec Scr Fac Ext Cet Arc Hub Fac Was Fac Upp Upp War Pro Fac Upp Upp Zhi Pro Res Qua Frg Maximum Alert Level 3 | . 1 . 1 . . . 3 2 1 . . 3 2 1 . . . 1 . . . . . . . . . . . . Low Security (%) 77 | 100 95 100 57 100 . 100 44 51 97 . 100 61 . 37 100 100 100 64 . . . . 100 . . . . 100 100 100 Level 1 11 | . 4 . 42 . . . 13 18 2 . . 2 . 62 . . . 35 . . . . . . . . . . . . Level 2 10 | . . . . . . . 41 29 . . . 26 100 . . . . . . . . . . . . . . . . . Level 3 . | . . . . . . . 1 . . . . 10 . . . . . . . . . . . . . . . . . . Level 4 . | . . . . . . . . . . . . . . . . . . . . . . . . . . . . . . . Level 5 . | . . . . . . . . . . . . . . . . . . . . . . . . . . . . . . . High Security . | . . . . . . . . . . . . . . . . . . . . . . . . . . . . . . . Max Security . | . . . . . . . . . . . . . . . . . . . . . . . . . . . . . . . Peak Influence 857 | 10 273 105 399 150 . 91 700 544 217 . 102 857 611 291 70 35 2 379 . . . . 48 . . . . 69 53 60 Initial 479 | . . 105 . 150 . . 1 283 186 . . 11 479 216 44 14 2 . . . . . 18 . . . . . 36 13 Average 123 | 2 72 15 180 14 . 14 322 217 45 . 19 285 536 210 22 4 . 134 . . . . 13 . . . . 12 37 13 Influence Increases 9385 | 20 648 155 1037 56 . 213 1261 1107 235 . 304 1746 342 199 200 79 . 858 . 20 98 60 83 45 5 . 15 276 59 264 Destroy 0b10 Robot/C 3700 | . 340 100 520 20 . 140 640 440 80 . 60 660 160 80 40 20 . 180 . . 80 . . . . . . 80 . 60 Destroy 0b10 Robot/NC 675 | 20 70 25 75 10 . 10 55 60 10 . 55 80 10 25 5 15 . 70 . 5 . . 5 . 5 . . 60 . 5 Destroy Leader 746 | . 100 10 160 . . 30 148 154 . . 14 66 . . . . . 24 . . . . 2 . . . . 36 . 2 Allied During Kill 944 | . . . . . . 8 . 248 . . . 449 140 76 5 . . . . . 18 . . . . . . . . . Trap Triggered on 0b10 40 | . . 20 10 . . . . . . . . . . . . . . . . . . . . . . . . . . 10 Successful Hack 298 | . 45 . 24 . . . 16 36 19 . 38 9 . . 15 20 . 30 . . . . 30 . . . . 16 . . Select Force Hacks 320 | . 60 . 60 . . . 30 . 120 . . . . . 50 . . . . . . . . . . . . . . . Disable Machine 480 | . . . 30 . . . 90 120 . . 15 30 . 15 . . . 120 . . . . . . . . . . 45 15 Anti-Garrison Action 150 | . . . . . . . 150 . . . . . . . . . . . . . . . . . . . . . . . Destroy Structure 892 | . 3 . 53 26 . 25 117 19 6 . 62 152 32 3 10 24 . 254 . . . . 16 . . . . 54 14 22 Partial Spotted 165 | . . . . . . . . . . . 15 105 . . 45 . . . . . . . . . . . . . . . Lose Combat Pursuer 975 | . 30 . 105 . . . 15 30 . . 45 195 . . 30 . . 180 . 15 . 60 30 45 . . 15 30 . 150 Influence Decreases 9385 | 20 378 425 650 443 . 208 595 1301 712 . 281 912 658 611 298 103 7 512 199 167 98 30 79 79 5 . 15 211 99 289 Entered New Map 2132 | . . 165 . 237 . . 4 388 291 . . 12 378 325 85 17 5 . 129 29 . . 12 14 . . . . 29 12 Time Decay 5825 | 20 358 250 610 206 . 188 521 556 421 . 281 533 230 206 161 77 2 352 70 138 43 30 67 65 5 . 15 191 70 159 Lost Part 519 | . 20 10 40 . . . 70 27 . . . 15 10 . 30 9 . 160 . . . . . . . . . 10 . 118 Lost Ally 759 | . . . . . . 20 . 180 . . . 352 40 80 22 . . . . . 55 . . . . . . 10 . . Purge Threat 150 | . . . . . . . . 150 . . . . . . . . . . . . . . . . . . . . . . Squads Dispatched 76 | . 5 . 5 . . 1 8 2 . . 15 4 . . 7 4 . 8 . . . . 3 . . . . 10 . 4 Investigation 41 | . 3 . 3 . . . 3 2 . . 11 2 . . 3 2 . 4 . . . . 1 . . . . 6 . 1 Extermination 11 | . . . . . . . . . . . 4 . . . 1 . . 3 . . . . 1 . . . . 1 . 1 Reinforcement 21 | . 2 . 2 . . 1 2 . . . . 2 . . 3 2 . 1 . . . . 1 . . . . 3 . 2 Assault 3 | . . . . . . . 3 . . . . . . . . . . . . . . . . . . . . . . . Garrison . | . . . . . . . . . . . . . . . . . . . . . . . . . . . . . . . Intercept . | . . . . . . . . . . . . . . . . . . . . . . . . . . . . . . . Searches Triggered . | . . . . . . . . . . . . . . . . . . . . . . . . . . . . . . . Construction Impeded 4 | . . . . . . 1 . . . . . 1 . . . 2 . . . . . . . . . . . . . . Haulers Reinforced 3 | . . . . . . . . . . . . . . . . . . . . . . . 1 . . . . 2 . . Active Scanning Responses . | . . . . . . . . . . . . . . . . . . . . . . . . . . . . . . . Cargo Convoy Interrupts . | . . . . . . . . . . . . . . . . . . . . . . . . . . . . . . . Stealth | -11 -10 -10 -9 -9 -9 -8 -8 -8 -8 -8 -6 -6 -6 -6 -6 -5 -5 -5 -5 -5 -5 -4 -4 -4 -4 -4 -3 -3 -3 -3 --------- Run | Yrd Mat Min Mat Min Exi Min Mat Sto Rec Scr Fac Ext Cet Arc Hub Fac Was Fac Upp Upp War Pro Fac Upp Upp Zhi Pro Res Qua Frg Distress Signals 21 | . 2 . 4 . . . . 2 . . . 4 1 . 1 1 . . . . . . 1 . . . . 5 . . Communications Jammed 6 | . . . . . . . . . . . . . . . 2 . . . . . . . . . . . . 2 . 2 Distress Signals 6 | . . . . . . . . . . . . . . . 2 . . . . . . . . . . . . 2 . 2 Times Spotted 352 | . 24 8 46 2 . 7 44 27 3 . 10 31 8 8 19 3 4 22 . 13 14 4 2 3 . . 1 19 1 29 Peak Tracking Total 16 | . 4 2 5 1 . 3 6 4 1 . 3 4 5 . 11 2 5 9 . 16 6 4 3 3 . . 1 4 1 10 Tactical Retreats 43 | . 2 . 7 . . . 1 1 . . 2 8 . . 1 . 1 7 . 2 . 1 1 2 . . 1 2 . 4 Traps | -11 -10 -10 -9 -9 -9 -8 -8 -8 -8 -8 -6 -6 -6 -6 -6 -5 -5 -5 -5 -5 -5 -4 -4 -4 -4 -4 -3 -3 -3 -3 ------- Run | Yrd Mat Min Mat Min Exi Min Mat Sto Rec Scr Fac Ext Cet Arc Hub Fac Was Fac Upp Upp War Pro Fac Upp Upp Zhi Pro Res Qua Frg Traps Triggered 27 | . 1 . . . . . . 2 . . 1 8 . . 1 2 . 1 . 1 . . . . . . . 2 . 8 Indirectly . | . . . . . . . . . . . . . . . . . . . . . . . . . . . . . . . Trap Hack Attempts . | . . . . . . . . . . . . . . . . . . . . . . . . . . . . . . . Triggered . | . . . . . . . . . . . . . . . . . . . . . . . . . . . . . . . Disarmed . | . . . . . . . . . . . . . . . . . . . . . . . . . . . . . . . Reprogrammed . | . . . . . . . . . . . . . . . . . . . . . . . . . . . . . . . Reused 6 | . . 2 1 . . . . . . . . . . . . . . . . 2 . . . . . . . . . 1 Traps Extracted . | . . . . . . . . . . . . . . . . . . . . . . . . . . . . . . . Installed 13 | . . 2 1 . . . . . . . . . . . . . . . . 4 . . . . . . . . . 6 Triggered 6 | . . 2 1 . . . . . . . . . . . . . . . . 2 . . . . . . . . . 1 Most Traps Carried 7 | . . 2 1 . . . . . . . . . . . . . . . . 7 6 6 6 6 6 6 6 6 6 6 Machines | -11 -10 -10 -9 -9 -9 -8 -8 -8 -8 -8 -6 -6 -6 -6 -6 -5 -5 -5 -5 -5 -5 -4 -4 -4 -4 -4 -3 -3 -3 -3 ---------- Run | Yrd Mat Min Mat Min Exi Min Mat Sto Rec Scr Fac Ext Cet Arc Hub Fac Was Fac Upp Upp War Pro Fac Upp Upp Zhi Pro Res Qua Frg Machines Disabled 40 | . . . 2 . . . 7 8 . . 1 6 . 1 . . . 8 1 . 2 . . . . . . . 3 1 Max in Single Turn 4 | . . . 1 . . . 4 1 . . 1 2 . . . . . 3 1 . 1 . . . . . . . 1 1 Garrison Access 13 | . . . . . . . 1 . . . 2 . . . 1 . . 2 . . . . 1 . . . . 4 1 1 Network Hub 1 | . . . . . . . . . . . . . . . 1 . . . . . . . . . . . . . . . Machines Repaired . | . . . . . . . . . . . . . . . . . . . . . . . . . . . . . . . Machines Dismantled 1 | . . . . . . . . . . . . . . . . . . . . . 1 . . . . . . . . . Machines Sabotaged 1 | . . . . . . . . . . . . . . . 1 . . . . . . . . . . . . . . . Overloaded Fab Kills . | . . . . . . . . . . . . . . . . . . . . . . . . . . . . . . . Hacking | -11 -10 -10 -9 -9 -9 -8 -8 -8 -8 -8 -6 -6 -6 -6 -6 -5 -5 -5 -5 -5 -5 -4 -4 -4 -4 -4 -3 -3 -3 -3 --------- Run | Yrd Mat Min Mat Min Exi Min Mat Sto Rec Scr Fac Ext Cet Arc Hub Fac Was Fac Upp Upp War Pro Fac Upp Upp Zhi Pro Res Qua Frg Machines Accessed 143 | . 8 . 12 . 1 . 5 13 9 2 19 12 . . 7 5 . 13 1 . 3 . 10 1 1 4 . 12 2 3 Terminals 70 | . 6 . 8 . . . 2 10 5 . 6 11 . . 5 3 . 4 . . . . 4 . . . . 5 . 1 Fabricators 11 | . . . . . . . . . . . 5 . . . . . . 3 . . . . 3 . . . . . . . Repair Stations 2 | . . . . . . . 1 . . . . . . . . . . 1 . . . . . . . . . . . . Recycling Units 22 | . 2 . 2 . . . 1 2 4 . 4 1 . . . 2 . . . . . . 1 . . . . 3 . . Scanalyzers 11 | . . . 2 . . . 1 . . . 2 . . . . . . 3 . . . . 1 . . . . . 1 1 Garrison Access 14 | . . . . . . . . 1 . . 2 . . . 2 . . 2 . . . . 1 . . . . 4 1 1 Total Hacks 403 | . 33 . 41 . 1 . 13 37 28 23 55 25 . . 13 9 . 36 1 . 11 . 25 1 1 17 . 25 2 6 Successful 266 | . 17 . 26 . 1 . 9 21 19 23 30 9 . . 8 5 . 26 1 . 11 . 16 1 1 17 . 17 2 6 Failed 134 | . 15 . 15 . . . 4 16 9 . 24 16 . . 5 4 . 10 . . . . 8 . . . . 8 . . Catastrophic 19 | . 1 . 1 . . . 1 2 2 . 5 1 . . 2 1 . . . . . . . . . . . 3 . . Database Lockouts 3 | . 1 . . . . . . . . . 1 . . . . . . . . . . . 1 . . . . . . . Manual 193 | . 24 . 28 . . . 8 19 16 . 32 2 1 . 10 7 . 15 . . . . 11 . . . . 17 1 2 Terminals 208 | . 27 . 27 . . . 6 28 19 . 19 23 . . 11 6 . 10 . . . . 14 . . . . 16 . 2 Fabricators 36 | . . . . . . . . . . . 17 . . . . . . 15 . . . . 4 . . . . . . . Repair Stations 2 | . . . . . . . 1 . . . . . . . . . . 1 . . . . . . . . . . . . Recycling Units 53 | . 6 . 5 . . . 3 7 9 . 12 2 . . . 3 . . . . . . 1 . . . . 5 . . Scanalyzers 32 | . . . 9 . . . 3 . . . 5 . . . . . . 8 . . . . 3 . . . . . 1 3 Garrison Access 17 | . . . . . . . . 2 . . 2 . . . 2 . . 2 . . . . 3 . . . . 4 1 1 Terminal Hacks 107 | . 5 . 3 . 1 . . 7 2 23 1 8 . . 2 1 . 6 1 . 11 . 8 1 1 17 . 8 . 1 Record 33 | . . . . . 1 . . . . 23 . . . . . . . . 1 . 3 . . . . 5 . . . . Part Schematic 11 | . . . . . . . . 2 2 . . . . . . . . . . . . . 3 . . 4 . . . . Robot Schematic 1 | . . . . . . . . . . . . . . . . . . . . . . . . . . . . 1 . . Robot Analysis 9 | . 1 . 1 . . . . . . . . . . . . . . . . . . . 1 . . 4 . 2 . . Prototype ID Bank 11 | . . . . . . . . . . . . . . . . . . . . . 7 . . . . 4 . . . . Open Door 13 | . . . . . . . . 3 . . . 7 . . . . . . . . 1 . . 1 1 . . . . . Level Access Points 2 | . . . . . . . . . . . . . . . 1 . . . . . . . . . . . . 1 . . Branch Access Points 4 | . . . . . . . . . . . . . . . . 1 . 1 . . . . 1 . . . . 1 . . Emergency Access Points 1 | . . . . . . . . . . . . . . . 1 . . . . . . . . . . . . . . . Fabricator Index 2 | . . . . . . . . . . . . . . . . . . 1 . . . . 1 . . . . . . . Scanalyzer Index 1 | . . . . . . . . . . . . . . . . . . 1 . . . . . . . . . . . . Unreport Threat 1 | . . . . . . . . 1 . . . . . . . . . . . . . . . . . . . . . . Locate Traps 6 | . 2 . . . . . . . . . 1 1 . . . . . 1 . . . . . . . . . . . 1 Recall Extermination 2 | . . . . . . . . . . . . . . . . . . . . . . . . . . . . 2 . . Recall Reinforcements 1 | . . . . . . . . . . . . . . . . . . . . . . . . . . . . 1 . . Hauler Manifests 4 | . . . 1 . . . . 1 . . . . . . . . . 1 . . . . 1 . . . . . . . Registered Prototypes 1 | . 1 . . . . . . . . . . . . . . . . . . . . . . . . . . . . . Zone Layout 4 | . 1 . 1 . . . . . . . . . . . . . . 1 . . . . 1 . . . . . . . Fabricator Hacks 21 | . . . . . . . . . . . 7 . . . . . . 10 . . . . 4 . . . . . . . Load Schematic 14 | . . . . . . . . . . . 6 . . . . . . 6 . . . . 2 . . . . . . . Build 7 | . . . . . . . . . . . 1 . . . . . . 4 . . . . 2 . . . . . . . Repair Station Hacks . | . . . . . . . . . . . . . . . . . . . . . . . . . . . . . . . Recycling Unit Hacks 13 | . . . 3 . . . 1 2 4 . 3 . . . . . . . . . . . . . . . . . . . Retrieve Matter 2 | . . . . . . . . . . . 2 . . . . . . . . . . . . . . . . . . . Retrieve Components 11 | . . . 3 . . . 1 2 4 . 1 . . . . . . . . . . . . . . . . . . . Scanalyzer 21 | . . . 7 . . . 3 . . . 2 . . . . . . 4 . . . . 2 . . . . . . 3 Insert Component 7 | . . . 4 . . . 1 . . . . . . . . . . 2 . . . . . . . . . . . . Analyze 6 | . . . 3 . . . 2 . . . . . . . . . . 1 . . . . . . . . . . . . Retrieve Study 8 | . . . . . . . . . . . 2 . . . . . . 1 . . . . 2 . . . . . . 3 Garrison Access Hacks 12 | . . . . . . . . . . . 2 . . . 1 . . 2 . . . . 1 . . . . 4 1 1 Seal Access 12 | . . . . . . . . . . . 2 . . . 1 . . 2 . . . . 1 . . . . 4 1 1 Unauthorized Hacks 92 | . 12 . 13 . . . 5 12 13 . 15 1 . . 5 4 . 4 . . . . 1 . . . . 5 1 1 Terminals 62 | . 10 . 11 . . . 3 12 9 . 7 . . . 5 2 . 1 . . . . . . . . . 1 . 1 Track 2 | . . . . . . . . . . . . . . . 1 . . . . . . . . . . . . . . 1 Assimilate 7 | . . . . . . . . . . . 2 . . . 1 2 . 1 . . . . . . . . . 1 . . Botnet 24 | . 5 . 5 . . . 1 5 5 . 3 . . . . . . . . . . . . . . . . . . . Skim 26 | . 5 . 6 . . . 2 7 4 . 2 . . . . . . . . . . . . . . . . . . . Sabotage 3 | . . . . . . . . . . . . . . . 3 . . . . . . . . . . . . . . . Fabricators 7 | . . . . . . . . . . . 5 . . . . . . 2 . . . . . . . . . . . . Prioritize 1 | . . . . . . . . . . . 1 . . . . . . . . . . . . . . . . . . . Recompile 6 | . . . . . . . . . . . 4 . . . . . . 2 . . . . . . . . . . . . Repair Stations 2 | . . . . . . . 1 . . . . . . . . . . 1 . . . . . . . . . . . . Patch 2 | . . . . . . . 1 . . . . . . . . . . 1 . . . . . . . . . . . . Recycling Units 20 | . 2 . 2 . . . 1 . 4 . 3 1 . . . 2 . . . . . . 1 . . . . 4 . . Reject 1 | . . . . . . . . . . . . . . . . . . . . . . . . . . . . 1 . . Tunnel 9 | . 2 . 2 . . . 1 . 4 . . . . . . . . . . . . . . . . . . . . . Fedlink 10 | . . . . . . . . . . . 3 1 . . . 2 . . . . . . 1 . . . . 3 . . Scanalyzers 1 | . . . . . . . . . . . . . . . . . . . . . . . . . . . . . 1 . Researchers 1 | . . . . . . . . . . . . . . . . . . . . . . . . . . . . . 1 . Garrison Access . | . . . . . . . . . . . . . . . . . . . . . . . . . . . . . . . Data Cores Recovered 1 | . . . 1 . . . . . . . . . . . . . . . . . . . . . . . . . . . Used . | . . . . . . . . . . . . . . . . . . . . . . . . . . . . . . . Hacking Detections 81 | . 8 . 10 . . . 3 9 8 . 12 7 . . 3 3 . 7 . . . . 4 . . . . 6 . 1 Full Trace Events 10 | . . . 1 . . . 1 2 1 . 3 1 . . . . . 1 . . . . . . . . . . . . Feedback Events 2 | . . . . . . . . 1 . . 1 . . . . . . . . . . . . . . . . . . . Corruption 2 | . . . . . . . . 1 . . 1 . . . . . . . . . . . . . . . . . . . Feedback Blocked . | . . . . . . . . . . . . . . . . . . . . . . . . . . . . . . . Robot Schematics Acquired . | . . . . . . . . . . . . . . . . . . . . . . . . . . . . . . . Robots Built . | . . . . . . . . . . . . . . . . . . . . . . . . . . . . . . . Authchips . | . . . . . . . . . . . . . . . . . . . . . . . . . . . . . . . Time 62 | . . . . . . . . . . . . . . . . . . . . . . . 62 . . . . . . . Total Robot Build Rating . | . . . . . . . . . . . . . . . . . . . . . . . . . . . . . . . Part Schematics Acquired 16 | . . . 3 . . . 1 2 2 . . . . . . . . 1 . . . . 3 . . 4 . . . . Parts Built 7 | . . . . . . . . . . . 1 . . . . . . 4 . . . . 2 . . . . . . . Authchips 6 | . . . . . . . . . . . 1 . . . . . . 4 . . . . 1 . . . . . . . Time 266 | . . . . . . . . . . . 51 . . . . . . 173 . . . . 42 . . . . . . . Total Part Build Rating 42 | . . . . . . . . . . . 8 . . . . . . 26 . . . . 8 . . . . . . . Part Studies Acquired 8 | . . . . . . . . . . . 2 . . . . . . 1 . . . . 2 . . . . . . 3 Parts Repaired . | . . . . . . . . . . . . . . . . . . . . . . . . . . . . . . . Time . | . . . . . . . . . . . . . . . . . . . . . . . . . . . . . . . Parts Recycled . | . . . . . . . . . . . . . . . . . . . . . . . . . . . . . . . Recycled Matter . | . . . . . . . . . . . . . . . . . . . . . . . . . . . . . . . Retrieved Matter . | . . . . . . . . . . . . . . . . . . . . . . . . . . . . . . . Retrieved Components 36 | . . . 9 . . . 3 10 13 . 1 . . . . . . . . . . . . . . . . . . . Parts Scanalyzed 5 | . . . 3 . . . 1 . . . . . . . . . . 1 . . . . . . . . . . . . Part Schematics Acquired 5 | . . . 3 . . . 1 . . . . . . . . . . 1 . . . . . . . . . . . . Parts Damaged 1 | . . . 1 . . . . . . . . . . . . . . . . . . . . . . . . . . . Bothacking | -11 -10 -10 -9 -9 -9 -8 -8 -8 -8 -8 -6 -6 -6 -6 -6 -5 -5 -5 -5 -5 -5 -4 -4 -4 -4 -4 -3 -3 -3 -3 ------------ Run | Yrd Mat Min Mat Min Exi Min Mat Sto Rec Scr Fac Ext Cet Arc Hub Fac Was Fac Upp Upp War Pro Fac Upp Upp Zhi Pro Res Qua Frg Used RIF Installer . | . . . . . . . . . . . . . . . . . . . . . . . . . . . . . . . Robots Hacked 4 | . . . . . . . . . . . . . . 3 . . . . . . . . . . . . . 1 . . Non-combat 1 | . . . . . . . . . . . . . . 1 . . . . . . . . . . . . . . . . Combat 2 | . . . . . . . . . . . . . . 2 . . . . . . . . . . . . . . . . Robot Hacks Applied 4 | . . . . . . . . . . . . . . 4 . . . . . . . . . . . . . . . . parse_system 3 | . . . . . . . . . . . . . . 3 . . . . . . . . . . . . . . . . check_alert 1 | . . . . . . . . . . . . . . 1 . . . . . . . . . . . . . . . . Manual 1 | . . . . . . . . . . . . . . . . . . . . . . . . . . . . 1 . . Relay Couplers Released 2 | . . . . . . . 2 . . . . . . . . . . . . . . . . . . . . . . . Machine Destruction 2 | . . . . . . . 2 . . . . . . . . . . . . . . . . . . . . . . . Fabnet Peak Effective % . | . . . . . . . . . . . . . . . . . . . . . . . . . . . . . . . Robots Rewired 22 | . . . . . . . . . . . . 17 . . . . . . . . 5 . . . . . . . . . Allies Hacked . | . . . . . . . . . . . . . . . . . . . . . . . . . . . . . . . Hacks Repelled . | . . . . . . . . . . . . . . . . . . . . . . . . . . . . . . . Allies | -11 -10 -10 -9 -9 -9 -8 -8 -8 -8 -8 -6 -6 -6 -6 -6 -5 -5 -5 -5 -5 -5 -4 -4 -4 -4 -4 -3 -3 -3 -3 -------- Run | Yrd Mat Min Mat Min Exi Min Mat Sto Rec Scr Fac Ext Cet Arc Hub Fac Was Fac Upp Upp War Pro Fac Upp Upp Zhi Pro Res Qua Frg Total Allies 58 | . . . . 4 . . . 10 . . 2 28 5 . . 1 . 1 . . 5 . . . . . . 2 . . Largest Group 13 | . . . . 3 3 3 . 10 1 . 1 13 11 9 3 1 . 1 . . 5 . . . . . . 2 . . Highest-Rated Group 786 | . . . . 40 40 40 . 173 10 . 26 530 786 533 230 26 . 10 . . 259 . . . . . . 33 . . Highest-Rated Ally 159 | . . . . 31 16 16 . 29 10 . 26 159 159 96 96 26 . 10 . . 64 . . . . . . 23 . . Initial UFD Resources 88 | . . . . . . . . . . . 22 38 40 40 40 43 57 57 57 57 57 59 59 69 69 69 72 72 88 88 Total Orders 53 | . . . . . . . . 1 . . 3 25 3 5 2 1 . 1 . . 12 . . . . . . . . . STAY 24 | . . . . . . . . 1 . . 2 13 . . 1 1 . 1 . . 5 . . . . . . . . . ROAM 4 | . . . . . . . . . . . . 1 1 2 . . . . . . . . . . . . . . . . FOLLOW 16 | . . . . . . . . . . . 1 10 1 2 1 . . . . . 1 . . . . . . . . . AID 9 | . . . . . . . . . . . . 1 1 1 . . . . . . 6 . . . . . . . . . Ally Attacks 428 | . . . . . . 26 . 84 . . . 206 65 17 13 . . . . . 17 . . . . . . . . . Total Damage 8880 | . . . . . . 260 . 1044 . . . 4274 1735 469 353 . . . . . 745 . . . . . . . . . Kills 71 | . . . . . . 4 . 14 . . . 31 10 6 3 . . . . . 3 . . . . . . . . . Allies Corrupted 1 | . . . . . . . . . . . . . . . . . . . . . 1 . . . . . . . . . Allies Melted 3 | . . . . . . . . . . . . 1 . . . . . . . . 2 . . . . . . . . . Intel | -11 -10 -10 -9 -9 -9 -8 -8 -8 -8 -8 -6 -6 -6 -6 -6 -5 -5 -5 -5 -5 -5 -4 -4 -4 -4 -4 -3 -3 -3 -3 ------- Run | Yrd Mat Min Mat Min Exi Min Mat Sto Rec Scr Fac Ext Cet Arc Hub Fac Was Fac Upp Upp War Pro Fac Upp Upp Zhi Pro Res Qua Frg Active Infowar (turns) 14547 | 61 1558 1249 739 . . . . . . 445 1577 1798 498 438 395 363 88 1330 156 448 560 86 253 211 364 69 320 912 150 479 Optics 5673 | . . . . . . . . . . . 1561 1798 498 300 . . . . . . . . . . . . . 887 150 479 Sensors 9362 | . . . . . . . . . . 444 1550 1216 . 138 328 363 88 1258 156 448 560 86 253 211 364 69 320 911 150 449 Terrain 2638 | . . . . . . . . . . . 2 . . . 49 . . 84 . . . . 65 184 360 65 318 912 150 449 Structural 135 | . . . . . . . . . . . 26 . . . 1 . . 67 . . 1 . 40 . . . . . . . Seismic 3607 | 61 1558 1249 739 . . . . . . . . . . . . . . . . . . . . . . . . . . . Jamming 1948 | . . . . . . . . . . 1 . 419 5 . 17 . . . . . . . . . . . . 907 150 449 Robot Analysis Total 8 | . 1 . 1 . . . . . . . . . . . . . . . . . . . . . . 4 . 2 . . Derelict Logs Recovered 9 | . . 2 . . . . . . . . . . . . . . . . 1 . . 3 . 1 2 . . . . . Drone Launches . | . . . . . . . . . . . . . . . . . . . . . . . . . . . . . . . Drone Recoveries . | . . . . . . . . . . . . . . . . . . . . . . . . . . . . . . . Exploration | -11 -10 -10 -9 -9 -9 -8 -8 -8 -8 -8 -6 -6 -6 -6 -6 -5 -5 -5 -5 -5 -5 -4 -4 -4 -4 -4 -3 -3 -3 -3 ------------- Run | Yrd Mat Min Mat Min Exi Min Mat Sto Rec Scr Fac Ext Cet Arc Hub Fac Was Fac Upp Upp War Pro Fac Upp Upp Zhi Pro Res Qua Frg Turns Passed 30663 | 153 1830 1468 2407 1869 1015 1797 1575 2912 1594 2883 1577 1798 498 438 398 406 88 1743 156 448 560 86 253 211 364 69 320 912 150 685 Spaces Moved 22129 | 62 716 712 955 587 407 698 471 913 616 1357 2293 1627 186 216 590 367 86 1592 584 964 833 384 527 454 620 159 440 1596 359 758 Core 12 | 4 . . . . . . . . . . . . . . . . . 4 . . . . . . . . . . . 4 Treads 6122 | 58 520 113 781 587 407 698 471 913 616 958 . . . . . . . . . . . . . . . . . . . . Legs . | . . . . . . . . . . . . . . . . . . . . . . . . . . . . . . . Wheels 1679 | . 196 599 174 . . . . . . . . . . . . 314 86 310 . . . . . . . . . . . . Hover 5946 | . . . . . . . . . . . . . . 161 590 53 . 606 . . . . 154 454 620 159 440 1596 359 754 Flight 8370 | . . . . . . . . . . 399 2293 1627 186 55 . . . 672 584 964 833 384 373 . . . . . . . Fastest Speed 13 | 50 110 110 95 250 250 250 243 242 247 27 25 25 28 44 44 52 95 23 23 14 22 13 22 14 30 30 14 17 14 14 Average Speed 94 | 152 146 119 200 250 250 250 245 250 247 198 26 30 105 93 44 94 95 55 23 23 23 21 24 29 30 30 29 29 29 34 Slowest Speed 570 | 160 160 240 250 250 250 250 250 570 250 335 335 103 178 240 52 125 95 250 23 26 26 22 150 30 30 30 30 34 30 250 Overloaded Moves 146 | . . . . . . . . . . . . . . . . . . . . 22 . 18 . 12 . . 9 10 12 63 Propulsion Burnouts . | . . . . . . . . . . . . . . . . . . . . . . . . . . . . . . . Robots Hopped 28 | . . . . . . . . 1 . . 6 13 . . . . . 5 . . 3 . . . . . . . . . Potential Cave-ins 7 | . . . . . . . . . . . 7 . . . . . . . . . . . . . . . . . . . Cave-ins Triggered . | . . . . . . . . . . . . . . . . . . . . . . . . . . . . . . . Exploration Rate (%) 64 | 4 96 97 87 99 82 98 45 96 98 89 53 80 57 81 41 15 74 31 70 75 87 58 17 65 81 60 50 55 46 23 Regions Visited 30 Branch Regions 21 Pre-discovered Areas 28 | . 4 1 5 . 1 . 1 3 4 3 1 . . . . . . . . . . 1 . 1 . 3 . . . . Known Exits Taken 24 | . 1 1 1 . . 1 . 1 1 1 1 1 1 1 1 . . 1 1 1 1 1 1 1 1 1 1 1 1 . Unknown Exits Taken 4 | 1 . . . 1 1 . 1 . . . . . . . . . . . . . . . . . . . . . . . Scrap Searched 21 | . . 1 . 1 . 3 . . . 3 . . . . . . . . 2 2 . 4 . 1 2 . 2 . . . Spaces Dug 140 | . . . 2 . . . 1 . 4 . 24 5 . . 7 7 . 34 . . . . 8 2 1 . 8 25 5 7 Terrain Destroyed 853 | . . . 57 26 . 38 129 14 7 . 88 197 66 . 7 12 . 139 . . . . 9 4 2 . 10 28 6 14 Melee 101 | . . . . . . . . . . . 6 5 . . 7 7 . 31 . . . . 6 2 1 . 7 20 5 4 Projectile 193 | . . . 42 6 . 6 39 14 7 . 42 6 . . . . . 3 . . . . 3 2 1 . 3 8 1 10 AOE 559 | . . . 15 20 . 32 90 . . . 40 186 66 . . 5 . 105 . . . . . . . . . . . . Terrain Rammed . | . . . . . . . . . . . . . . . . . . . . . . . . . . . . . . . Walls Destroyed . | . . . . . . . . . . . . . . . . . . . . . . . . . . . . . . . Machines Disabled . | . . . . . . . . . . . . . . . . . . . . . . . . . . . . . . . Actions | -11 -10 -10 -9 -9 -9 -8 -8 -8 -8 -8 -6 -6 -6 -6 -6 -5 -5 -5 -5 -5 -5 -4 -4 -4 -4 -4 -3 -3 -3 -3 --------- Run | Yrd Mat Min Mat Min Exi Min Mat Sto Rec Scr Fac Ext Cet Arc Hub Fac Was Fac Upp Upp War Pro Fac Upp Upp Zhi Pro Res Qua Frg Total 30348 | 87 1337 1289 1254 973 406 721 716 1422 653 1544 3158 2854 454 426 713 403 92 2305 603 1183 1178 385 632 524 791 177 613 1945 395 1115 Wait 6486 | . 518 537 158 376 . 3 107 429 11 137 700 960 237 164 104 9 3 550 17 197 297 . 75 65 165 5 152 239 15 256 Move 22048 | 61 715 711 954 586 406 697 470 910 615 1356 2280 1602 185 215 590 367 85 1582 583 963 826 383 526 453 619 158 439 1595 358 758 Hop 25 | . . . . . . . . 1 . . 6 11 . . . . . 4 . . 3 . . . . . . . . . Pick Up 131 | 4 9 7 12 1 . 4 9 5 4 19 12 . 2 1 2 1 . 10 1 7 2 1 4 . . 1 1 7 4 1 Fast Attach 104 | 7 1 1 6 . . . 2 8 2 7 1 2 2 11 . 5 2 19 . 1 2 . 2 . . 3 . 6 . 14 Attach 67 | . 2 1 1 . . . 10 1 2 1 16 6 2 1 . 1 . 8 1 . 2 . 3 . . . . 3 3 3 Detach 24 | . . . . . . . 2 . . . 8 7 . . . . . 2 . . . . 1 . . . . . 2 2 Swap 194 | . 4 3 13 2 . 2 23 11 1 9 41 10 1 2 5 3 . 31 . 2 2 1 7 1 3 6 4 7 . . Drop 128 | . 5 6 12 . . . 5 7 3 15 13 3 2 11 2 2 2 7 . 8 3 . 1 . . 4 2 6 3 6 Fire 553 | 15 81 21 96 8 . 14 88 47 15 . 62 32 4 . . 1 . 6 . . 5 . 3 1 1 . 7 24 4 18 Melee 316 | . . . . . . . . . . . 19 20 19 21 9 14 . 75 1 1 4 . 10 4 3 . 8 58 6 44 Ram 2 | . 1 . . . . . . . . . . . . . 1 . . . . . . . . . . . . . . . Kick . | . . . . . . . . . . . . . . . . . . . . . . . . . . . . . . . Crush 6 | . 1 . 1 . . 1 . 3 . . . . . . . . . . . . . . . . . . . . . . Escape Stasis 138 | . . . . . . . . . . . . 120 . . . . . 11 . . . . . . . . . . . 7 Rewire 105 | . . . . . . . . . . . . 81 . . . . . . . . 24 . . . . . . . . . Trap 13 | . . 2 1 . . . . . . . . . . . . . . . . 4 . . . . . . . . . 6 Miscellaneous 8 | . . . . . . . . . . . . . . . . . . . . . 8 . . . . . . . . . Route ------- -11/Scrapyard -10/Materials (discovered 6 exits: *Mat x3 / *Min x2 / *Sub) -10/Mines (discovered 3 exits: *Mat x2 / Sub) -9/Materials (discovered 4 exits: *Mat x3 / *Min) -9/Mines (discovered 4 exits: *Mat x2 / *Exi / [*Zio]) -9/Exiles -8/Mines (discovered 2 exits: *Mat x2) -8/Materials (discovered 2 exits: *Fac / *Sto) -8/Storage (discovered 2 exits: *Fac / *Rec) -8/Recycling (discovered 2 exits: *Fac / *Scr) -8/Scraptown (discovered 2 exits: *Fac x2) -6/Factory (discovered 7 exits: Fac x4 / *Low x2 / *Ext) -6/Extension (discovered 2 exits: *Fac / *Cet) -6/Cetus (discovered 2 exits: *Fac / *Arc) -6/Archives (discovered 2 exits: *Fac / *Hub) -6/Hub_04(d) (discovered 4 exits: *Fac x4) -5/Factory (discovered 3 exits: *Fac / Upp x2) -5/Waste -5/Factory (discovered 2 exits: *Upp x2) -5/Upper Caves -5/Upper Caves -5/Warlord -4/Proximity Caves -4/Factory (discovered 2 exits: *Upp / Arm) -4/Upper Caves -4/Upper Caves (discovered 2 exits: *Res / *Zhi) -4/Zhirov -3/Proximity Caves -3/Research (discovered 5 exits: *Res x3 / *Qua x2) -3/Quarantine (discovered 2 exits: *Sec / *Frg) -3/Protoforge (discovered 1 exit: *Res) History --------- Turn | Location | Event 28 | -11/Scrapyard | Discovered new exit (range 15) 154 | -11/Scrapyard | Entered Materials 307 | -10/Materials | Build established: Mutant 329 | -10/Materials | Discovered new exit (range 11) 594 | -10/Materials | Discovered new exit (range 11) 922 | -10/Materials | Central database locked down 993 | -10/Materials | Discovered new exit (range 16) 1370 | -10/Materials | Identified exit to Materials 1370 | -10/Materials | Identified exit to Mines 1445 | -10/Materials | Loaded intel: 8 terminal locations 1647 | -10/Materials | Learned location of 2 exits from Mines 1674 | -10/Materials | Learned Storage emergency access door positions 1823 | -10/Materials | Learned Recycling recycling unit intel 1984 | -10/Materials | Entered Mines 1986 | -10/Mines | Identified exit to Subcaves 2082 | -10/Mines | Learned location of Zion (-7) 2155 | -10/Mines | Learned Materials terminal intel 2172 | -10/Mines | Found a hidden stash of uninstalled traps 2956 | -10/Mines | YI-UF0 nonchalantly dropped a Grenade Launcher on the ground 2994 | -10/Mines | Found a damaged Exp. Sensor Array with a note attached 2998 | -10/Mines | Found Prototype Device 3452 | -10/Mines | Entered Materials 3452 | -9/Materials | Evolved 2 slots: Propulsion x1, Utility x1 3453 | -9/Materials | Identified exit to Materials 3454 | -9/Materials | Loaded intel: 12 terminal locations 3761 | -9/Materials | Discovered exit to Materials (range 13) 4155 | -9/Materials | Identified Exp. Sensor Array 4164 | -9/Materials | Loaded intel: 13 trap records 4210 | -9/Materials | Learned location of 1 exit from Storage 4246 | -9/Materials | Identified exit to Mines 4272 | -9/Materials | Learned location of 1 exit from Materials 4289 | -9/Materials | Learned Storage security intel 4308 | -9/Materials | Learned Recycling recycling unit intel 4370 | -9/Materials | Learned location of 1 exit from Recycling 5859 | -9/Materials | Entered Mines 5898 | -9/Mines | Assembled infested the area 5903 | -9/Mines | Assisted by a Guerilla fighting off Assembled 6505 | -9/Mines | Received a Mining Laser from a helpful Derelict 6620 | -9/Mines | Found a Scrap Suit stashed away for nefarious purposes 6684 | -9/Mines | Received a Rocket Launcher from a helpful Derelict 6731 | -9/Mines | Discovered exit to Materials (range 11) 6844 | -9/Mines | Core integrity fell below 50% 6904 | -9/Mines | A Derelict revealed a hidden shortcut to a safe place 7576 | -9/Mines | Deemed a non-threat by the Exiles lab entrance 7669 | -9/Mines | Assisted by bots powering up and referring to "LRC-V3" 7714 | -9/Mines | Discovered new exit (range 5) 7728 | -9/Mines | Entered Exiles 7728 | -9/Exiles | Accompanied by 3 allies 7791 | -9/Exiles | Met 8R-AWN 7831 | -9/Exiles | Met EX-HEX 7901 | -9/Exiles | Met EX-BIN 8126 | -9/Exiles | Met EX-DEC 8182 | -9/Exiles | Visited The Gauntlet 8716 | -9/Exiles | Discovered new exit (range 14) 8743 | -9/Exiles | Entered Mines 8743 | -8/Mines | Accompanied by 3 allies 8851 | -8/Mines | Discovered exit to Materials (range 10) 8926 | -8/Mines | Discovered exit to Materials (range 15) 9211 | -8/Mines | Found DCF Scrap (13 items) 10540 | -8/Mines | Entered Materials 10540 | -8/Materials | Evolved 2 slots: Propulsion x1, Utility x1 10541 | -8/Materials | Identified exit to Factory 10951 | -8/Materials | Discovered new exit (range 16) 11452 | -8/Materials | Garrison activated, responded to threat 11740 | -8/Materials | First assault squad dispatched 11871 | -8/Materials | Lost 6 parts (1p3n2u) 12115 | -8/Materials | Entered Storage 12116 | -8/Storage | Identified exit to Recycling 13026 | -8/Storage | Learned 8 Factory zone layouts 13086 | -8/Storage | Assisted by bots powering up and referring to "LRC-V3" 13150 | -8/Storage | Learned location of 1 exit from Recycling 13198 | -8/Storage | Learned location of 1 exit from Recycling 13237 | -8/Storage | Learned location of 2 exits from Factory 13387 | -8/Storage | Build established: Commander-Mutant 13393 | -8/Storage | Learned location of 1 exit from Recycling 15007 | -8/Storage | Used back door to open Recycling access 15027 | -8/Storage | Entered Recycling 15027 | -8/Recycling | Accompanied by 1 ally 15028 | -8/Recycling | Identified exit to Scraptown 15028 | -8/Recycling | Identified exit to Factory 15029 | -8/Recycling | Loaded intel: 4 recycling unit locations 15089 | -8/Recycling | Build established: Mutant 16560 | -8/Recycling | Scanned before Scraplab entrance 16597 | -8/Recycling | Entered Scraplab 16621 | -8/Recycling | Entered Scraptown 16621 | -8/Scraptown | System corruption cleaned by C-Scrubber 16661 | -8/Scraptown | Heard Great Nut preacher, LISTEN AND RECITE! 16925 | -8/Scraptown | Visited Awakened 16962 | -8/Scraptown | Visited Shadow of the Wyrm 17098 | -8/Scraptown | Visited The Evicted 17135 | -8/Scraptown | Visited Fellowship of the Rings 17160 | -8/Scraptown | Visited Red Mages 17204 | -8/Scraptown | Visited Comm Corps 17229 | -8/Scraptown | Visited SPCMW 17385 | -8/Scraptown | Discovered exit to Factory (range 11) 18041 | -8/Scraptown | Visited UFD Registry 18056 | -8/Scraptown | Registered with UFD as "Longbucket" 18133 | -8/Scraptown | Visited Cartography Club 18172 | -8/Scraptown | Visited Curators Association 18259 | -8/Scraptown | Visited Infowarlord's Domain 18293 | -8/Scraptown | Visited Modified Component R&D 18475 | -8/Scraptown | Visited Scrap Suit Storage 18512 | -8/Scraptown | Visited Abandonware Association 18546 | -8/Scraptown | Learned abandonware demo "REPAIR.EXE" 18546 | -8/Scraptown | Learned abandonware demo "ERRANTS.EXE" 18874 | -8/Scraptown | Visited Chapter 10 18911 | -8/Scraptown | Visited Supply Room 19022 | -8/Scraptown | Found Surveybot 17 Chip 19035 | -8/Scraptown | Learned location of Cetus (-6) 19035 | -8/Scraptown | Learned location of Quarantine (-3) 19035 | -8/Scraptown | Learned 16 Materials zone layouts 19035 | -8/Scraptown | Learned 8 Factory zone layouts 19035 | -8/Scraptown | Learned 8 Research zone layouts 19035 | -8/Scraptown | Learned 12 Research zone layouts 19035 | -8/Scraptown | Learned 8 Lower Caves zone layouts 19035 | -8/Scraptown | Learned 16 Lower Caves zone layouts 19035 | -8/Scraptown | Learned 16 Proximity Caves zone layouts 19035 | -8/Scraptown | Learned 4 Armory zone layouts 19035 | -8/Scraptown | Learned Storage emergency access door positions 19035 | -8/Scraptown | Learned location of 2 exits from Factory 19035 | -8/Scraptown | Learned location of 3 exits from Proximity Caves 19042 | -8/Scraptown | Found Deep Structural Scanner 19321 | -8/Scraptown | Found Exp. Signal Interpreter 19470 | -8/Scraptown | Met Optimus 19470 | -8/Scraptown | Accepted into 0bPrime 19504 | -8/Scraptown | Entered Factory 19504 | -6/Factory | Evolved 4 slots: Propulsion x1, Utility x3 19505 | -6/Factory | Identified exit to Lower Caves 19505 | -6/Factory | Identified exit to Extension 19506 | -6/Factory | Identified exit to Factory 19595 | -6/Factory | Loaded intel: 8 recycling unit locations 19634 | -6/Factory | Watched by a mysterious "MATRIX" hacker. 19888 | -6/Factory | Attached CPS modules to Technician 5a. 20301 | -6/Factory | Fabricated Exp. Sensor Array (x1) 20306 | -6/Factory | Learned location of Protoforge (-3) 20397 | -6/Factory | Build established: Hacker-Scout 20719 | -6/Factory | Central database locked down 21081 | -6/Factory | Entered Extension 21251 | -6/Extension | Rescued a captive Derelict 21294 | -6/Extension | Rescued a captive Derelict 21294 | -6/Extension | Rescued a captive Derelict 21303 | -6/Extension | Rescued a captive Derelict 21307 | -6/Extension | Rescued a captive Derelict 21417 | -6/Extension | Lost 6 allies 21663 | -6/Extension | Spotted B-75 Beast 21871 | -6/Extension | Allies destroyed B-75 Beast 21874 | -6/Extension | Spotted B-75 Beast 21889 | -6/Extension | Allies destroyed B-75 Beast 21913 | -6/Extension | Lost 3 allies 22035 | -6/Extension | Rescued A7 22180 | -6/Extension | Rescued a captive Derelict 22181 | -6/Extension | Rescued a captive Derelict 22204 | -6/Extension | Rescued a captive Derelict 22413 | -6/Extension | Rescued a captive Derelict 22414 | -6/Extension | Rescued a captive Derelict 22437 | -6/Extension | Loaded intel: 1 recycling unit location 22717 | -6/Extension | Discovered exit to Factory (range 13) 22717 | -6/Extension | Discovered new exit (range 9) 22792 | -6/Extension | Build established: Commander-Scout 22808 | -6/Extension | Identified exit to Cetus 22879 | -6/Extension | Entered Cetus 22879 | -6/Cetus | Accompanied by 8 allies (A7) 22884 | -6/Cetus | Acquired a Cetus Manufacturing Module code from A7 22888 | -6/Cetus | Spotted Cetus Guard 22890 | -6/Cetus | Spotted Cetus Guard 22892 | -6/Cetus | Spotted Cetus Guard 22894 | -6/Cetus | Allies destroyed Cetus Guard 22894 | -6/Cetus | Allies destroyed Cetus Guard 22897 | -6/Cetus | Spotted Cetus Guard 22907 | -6/Cetus | Allies destroyed Cetus Guard 22907 | -6/Cetus | Allies destroyed Cetus Guard 22972 | -6/Cetus | Started Cetus Manufacturing Module 22997 | -6/Cetus | Manufactured an Enhanced Grunt 23022 | -6/Cetus | Manufactured an Enhanced Grunt 23047 | -6/Cetus | Manufactured an Enhanced Grunt 23072 | -6/Cetus | Manufactured an Enhanced Grunt 23097 | -6/Cetus | Manufactured an Enhanced Grunt 23132 | -6/Cetus | Discovered new exit (range 18) 23189 | -6/Cetus | Spotted Cetus Guard 23189 | -6/Cetus | Spotted Cetus Guard 23190 | -6/Cetus | Spotted Cetus Guard 23190 | -6/Cetus | Spotted Cetus Guard 23190 | -6/Cetus | Allies destroyed Cetus Guard 23194 | -6/Cetus | Allies destroyed Cetus Guard 23196 | -6/Cetus | Allies destroyed Cetus Guard 23207 | -6/Cetus | Allies destroyed Cetus Guard 23215 | -6/Cetus | Discovered exit to Factory (range 17) 23223 | -6/Cetus | Met Revision 17 23272 | -6/Cetus | Found Prototype Protection 23272 | -6/Cetus | Identified Med. Regenerative Plating 23320 | -6/Cetus | Murdered A7 23326 | -6/Cetus | Extracted ID and sensor layout for unrecognized location from A7's data core 23331 | -6/Cetus | Build established: Commander-Mutant 23362 | -6/Cetus | Identified exit to Archives 23377 | -6/Cetus | Entered Archives 23377 | -6/Archives | Accompanied by 9 allies 23449 | -6/Archives | Lost 6 allies 23450 | -6/Archives | Found Prototype Device 23450 | -6/Archives | Identified Exp. Thermal Shield 23488 | -6/Archives | Discovered exit to Factory (range 14) 23540 | -6/Archives | Discovered new exit (range 18) 23701 | -6/Archives | Build established: Hacker-Mutant 23790 | -6/Archives | Identified exit to Hub_04(d) 23815 | -6/Archives | Entered Hub_04(d) 23815 | -6/Hub_04(d) | Accompanied by 3 allies 24090 | -6/Hub_04(d) | Build established: Scavenger-Mutant 24173 | -6/Hub_04(d) | Network Hub disabled 24188 | -6/Hub_04(d) | Spotted Lightning 24191 | -6/Hub_04(d) | Spotted Lightning 24201 | -6/Hub_04(d) | Spotted Lightning 24201 | -6/Hub_04(d) | Spotted Lightning 24213 | -6/Hub_04(d) | Entered Factory 24213 | -5/Factory | Evolved 2 slots: Propulsion x1, Utility x1 24243 | -5/Factory | Lost 3 parts (1p2n) 24325 | -5/Factory | Loaded intel: 7 recycling unit locations 24429 | -5/Factory | Identified exit to Upper Caves 24494 | -5/Factory | Build established: Hacker-Mutant 24518 | -5/Factory | Discovered new exit (range 8) 24524 | -5/Factory | Identified exit to Factory 24619 | -5/Factory | Sucked down chute 24619 | -5/Factory | Entered Waste 24628 | -5/Waste | Spotted C-40 Crusher 24634 | -5/Waste | EMP discharged 24658 | -5/Waste | Spotted C-40 Crusher 24658 | -5/Waste | Spotted C-40 Crusher 24663 | -5/Waste | Spotted C-40 Crusher 24679 | -5/Waste | Spotted C-40 Crusher 24689 | -5/Waste | Discovered new exit (range 10) 24697 | -5/Waste | Identified exit to Factory 24701 | -5/Waste | Found Prototype Launcher 24701 | -5/Waste | Identified Tactical Quantum Warhead 24707 | -5/Waste | Entered Factory 24923 | -5/Factory | Spotted B-75 Beast 25332 | -5/Factory | Lost 3 parts (3n) 25838 | -5/Factory | System corruption reached 10% 25902 | -5/Factory | Core integrity fell below 50% 25949 | -5/Factory | Lost 13 parts (1p6n4u2w) 26120 | -5/Factory | Fabricated Exp. Sensor Array (x1) 26156 | -5/Factory | Fabricated Adv. Hacking Suite (x1) 26193 | -5/Factory | Fabricated Adv. Hacking Suite (x1) 26231 | -5/Factory | Fabricated Adv. Hacking Suite (x1) 26450 | -5/Factory | Entered Upper Caves 26450 | -5/Upper Caves | Spotted B-75 Beast 26527 | -5/Upper Caves | Build established: Hacker-Scout 26544 | -5/Upper Caves | Discovered new exit (range 8) 26553 | -5/Upper Caves | Learned Factory terminal intel 26561 | -5/Upper Caves | Found Alien Artifact 26567 | -5/Upper Caves | Encountered a Warlord checkpoint 26606 | -5/Upper Caves | Identified exit to Upper Caves 26606 | -5/Upper Caves | Entered another Upper Caves area 26806 | -5/Upper Caves | Encountered an infested base 26926 | -5/Upper Caves | Attracted the attention of an 0b10 checkpoint 27026 | -5/Upper Caves | Discovered new exit (range 15) 27039 | -5/Upper Caves | Identified exit to Warlord 27054 | -5/Upper Caves | Entered Warlord 27063 | -5/Warlord | System corruption cleaned by Quarantine Array 27142 | -5/Warlord | Found Prototype Device 27142 | -5/Warlord | Identified Thermal Barrier 27180 | -5/Warlord | Rebuked by Warlord 27191 | -5/Warlord | Warlord's base attacked by MAIN.C 27375 | -5/Warlord | Spotted B-86 Titan 27469 | -5/Warlord | Spotted B-86 Titan 27472 | -5/Warlord | Warlord forces counterattacked 27516 | -5/Warlord | Lost 10 allies 27564 | -5/Warlord | Opened side exit 27568 | -5/Warlord | Discovered new exit (range 10) 27614 | -5/Warlord | Identified exit to Proximity Caves 27614 | -5/Warlord | Entered Proximity Caves 27614 | -4/Proximity Caves | Spotted B-86 Titan 27642 | -4/Proximity Caves | Learned Research garrison access intel 27648 | -4/Proximity Caves | Learned 8 Research zone layouts 27700 | -4/Proximity Caves | Entered Factory 27700 | -4/Factory | Evolved 2 slots: Utility x2 27701 | -4/Factory | Loaded intel: 26 terminal locations 27713 | -4/Factory | Targeted by mysterious "MATRIX" hacker. 27795 | -4/Factory | Central database locked down 27845 | -4/Factory | Fabricated Transmission Jammer (x2) 27854 | -4/Factory | Identified exit to Upper Caves 27854 | -4/Factory | Identified exit to Armory 27900 | -4/Factory | Loaded intel: 8 recycling unit locations 27953 | -4/Factory | Entered Upper Caves 28020 | -4/Upper Caves | Build established: Wizard-Scout 28043 | -4/Upper Caves | Encountered a Warlord checkpoint 28145 | -4/Upper Caves | Discovered new exit (range 17) 28164 | -4/Upper Caves | Identified exit to Upper Caves 28164 | -4/Upper Caves | Entered another Upper Caves area 28165 | -4/Upper Caves | Discovered new exit (range 15) 28171 | -4/Upper Caves | Identified exit to Research 28179 | -4/Upper Caves | Learned Research garrison access intel 28283 | -4/Upper Caves | Encountered a Warlord checkpoint 28321 | -4/Upper Caves | Discovered new exit (range 6) 28323 | -4/Upper Caves | Identified exit to Zhirov 28463 | -4/Upper Caves | Learned Research garrison access intel 28528 | -4/Upper Caves | Entered Zhirov 28528 | -4/Zhirov | Discovered new exit (range 3) 28534 | -4/Zhirov | Met Zhirov 28542 | -4/Zhirov | Zhirov requested help retrieving the SGEMP Prototype 28549 | -4/Zhirov | Found Alien Artifact 28549 | -4/Zhirov | Identified Integrated Dissipator 28549 | -4/Zhirov | Installed Integrated Dissipator, increased core heat dissipation (+20) 28584 | -4/Zhirov | Found Alien Artifact 28597 | -4/Zhirov | Identified exit to Proximity Caves 28597 | -4/Zhirov | Entered Proximity Caves 28897 | -3/Proximity Caves | Spotted B-86 Titan 28917 | -3/Proximity Caves | Entered Research 28917 | -3/Research | Evolved 2 slots: Power x1, Utility x1 28918 | -3/Research | Identified exit to Research 28919 | -3/Research | Loaded intel: 4 garrison access locations 28936 | -3/Research | Identified exit to Quarantine 29052 | -3/Research | Spotted B-86 Titan 29117 | -3/Research | Revision forces began assault on 0b10 29232 | -3/Research | Build established: Hacker-Ninja 29312 | -3/Research | Loaded intel: 5 recycling unit locations 29354 | -3/Research | Spotted B-86 Titan 29483 | -3/Research | Met up with Revision 17++ 29617 | -3/Research | Research terminal network offline 29829 | -3/Research | Entered Quarantine 29850 | -3/Quarantine | Found Alien Energy Cannon 29905 | -3/Quarantine | Found Alien Artifact 29933 | -3/Quarantine | Found Alien Artifact 29959 | -3/Quarantine | Spotted Fortress 29974 | -3/Quarantine | Discovered new exit (range 17) 29977 | -3/Quarantine | Discovered new exit (range 6) 29978 | -3/Quarantine | Identified exit to Section 7 29979 | -3/Quarantine | Identified exit to Protoforge 29979 | -3/Quarantine | Entered Protoforge 30098 | -3/Protoforge | Superfortress began startup sequence 30107 | -3/Protoforge | Spotted Hotshot 30143 | -3/Protoforge | Spotted Hotshot 30190 | -3/Protoforge | Build established: Ninja 30215 | -3/Protoforge | Discovered exit to Research (range 13) 30350 | -3/Protoforge | Spotted Hotshot 30350 | -3/Protoforge | Spotted Hotshot 30358 | -3/Protoforge | Spotted Hotshot 30369 | -3/Protoforge | Spotted Hotshot 30418 | -3/Protoforge | Identified Core Cannon 30462 | -3/Protoforge | Lost 3 parts (2p1n) 30524 | -3/Protoforge | System corruption reached 10% 30582 | -3/Protoforge | Core integrity fell below 50% 30593 | -3/Protoforge | Found Prototype Device 30593 | -3/Protoforge | Identified Exp. Kinecellerator 30629 | -3/Protoforge | Spotted V491-f 30630 | -3/Protoforge | Spotted V341-p 30637 | -3/Protoforge | Spotted V659-k 30640 | -3/Protoforge | Core integrity fell below 20% 30664 | -3/Protoforge | Destroyed by Swarm Drone with Compact Gauss Rifle Last Messages --------------- 30641_ A bubble of rippling energy engulfs the area. 30641_ Field strength at 93. 30642_ Field strength at 86. 30643_ Field strength at 79. 30644_ Swarm Drone misfires. 30644_ Field strength at 72. 30645_ Field strength at 65. 30646_ Gamma Rifle destroyed. 30646_ Penetrated by Slug. 30646_ Railgun destroyed. 30646_ Field strength at 37. 30647_ Field strength at 25. 30648_ Penetrated by Slug. 30648_ Field strength at 7. 30648_ Stasis field depleted. 30655_ Penetrated by Slug. 30658_ Q,BUM<&G:MQGGREVY>TD 30658_ V341-p follow-up attacks with Prototype Impact Weapon. 30660_ Slug penetrates Door. 30662_ Penetrated by Slug. Map ----- +----------------------------------------------------+ | ??????????????????????????????????????????? | | ??????????????????????????????????????????"" | | ??????????????????????????????????????????" | | ?????????????????????????????????????????? | | ?????????????????????????????????????????? | | ?????????????????????????????????????????? % | | ?????????????????????????????????????????##" % #? | | ?????????????????????????????????????????#"!! #? | | ?????????????????????????????????????????#"! " #? | | ?????????????????????????????????????????#"! " #? | | ?????????????????????????????????????????#"!!"! #? | | ?????????????????????????????????????????# !!"!!#? | | ?????????????????????????????????????????# !!"!!#? | | ?????????????????????????????????????????#"!!"!!#? | | ?????????????????????????????????????????#"%!"%[#? | | ?????????????????????????????????????????# !![=*#? | | ?????????????????????????????????????????#"" # #? | | ?????????????????????????????????????????##### #? | | ?????????????????????????????????????????????# #? | | ?????????????????????????????????????????????# #? | | ?????????????????????#???????????????????????# #? | | ?????????????????????# ??????????????????????# #? | | ?????????????????????# ?????????????????????# #? | | ?????????????######### ###################### ## | | ??????????# | | ??????????# @ V | | ??????????# n | | ?????????????####################;;############### | | ?????????????????????????????#?" !"##?##?###### | | ????????????????????????????##? !"###??######? | | ?????????????????????????###?#? !"####?##?#### | | ??????????????????????????####" !"########?#?# | | ???????????????????????#?#####" T" #####?###?#?# | | ????????????????????????#?###?" "" "##?##?#?##?# | | ???????????????????????#?####?" """" "#####?#####? | | ????????????????????##########"?"??"""#########?## | | ???????????????????##???######?#??########?####### | | ??????????????????"###?##???##########?##?####???# | | ???????????????????###?#?###?#?###?########?##?### | | ????????????????? "########?##############?####??# | | ??????????????? ???########?#############?#####?## | | ???????????????? ??#?####?##?#########?###?##?### | | ???????????????? "##?######?##############?#?#### | | ???????????????"?""##?###########?######?##?###### | | ?????????????#?###?###########?######?#######?#### | | ?????????????##?#?#???#?#??#####?################# | | ??????????????#?#######?#########?####?########### | | ???????????###########?##################??####### | | ???????????##??#############?##################### | | ????????????#??#?########?####?#######""""#####""" | +----------------------------------------------------+ Best States ------------- Heat Dissipation 104 Energy Generation 41 Energy Capacity 410 Matter Stores 300 Matter Capacity 300 Sight Range 22 Robot Scan Range 20 Terrain Scan Range 24 Terrain Scan Density 1210 Jamming Range 12 Additional Mass Support 9 EM Shielding 3 Armor Coverage 375 Utility Shielding 66 Evasion (%) 73 Targeting Accuracy 8 Recoil Reduction 4 Offensive Hacking 56 Defensive Hacking 14 Authchip Count 4 Trap Extractor Capacity 6 Item Schematics ----------------- Imp. Flight Unit | -9/Materials | Scanalyzed Exp. Sensor Array | -9/Materials | Scanalyzed VTOL Module | -9/Materials | Scanalyzed Visual Processing Unit | -8/Materials | Scanalyzed Hacking Suite | -8/Storage | Hacked Xenon Bombardment Thruster | -8/Storage | Hacked Lgt. Nuclear Core | -8/Recycling | Hacked Power Amplifier | -8/Recycling | Hacked Adv. Hacking Suite | -5/Factory | Scanalyzed Lrn. Terrain Scanner | -4/Factory | Hacked Transmission Jammer | -4/Factory | Hacked Lgt. Quantum Reactor | -4/Factory | Hacked Assault Drone Bay | -4/Zhirov | Free Exp. Heat Sink | -4/Zhirov | Free Exp. Optical Array | -4/Zhirov | Free Imp. Arc Thrower | -4/Zhirov | Free Robot Schematics ------------------ None Fabricated ------------ Exp. Sensor Array | x1 | -6/Factory | Authchip Exp. Sensor Array | x1 | -5/Factory | Authchip Adv. Hacking Suite | x1 | -5/Factory | Authchip Adv. Hacking Suite | x1 | -5/Factory | Authchip Adv. Hacking Suite | x1 | -5/Factory | Authchip Transmission Jammer | x2 | -4/Factory | Authchip Repaired ---------- Nothing Studied --------- VTOL Module | -6/Factory | Hacked Lrn. Missile Launcher | -6/Factory | Hacked Scythe | -5/Factory | Hacked Mic. Fission Core | -4/Factory | Hacked Mass Driver | -4/Factory | Hacked Nova Cannon | -3/Protoforge | Hacked Mic. Antimatter Reactor | -3/Protoforge | Hacked Lgt. Antimatter Reactor | -3/Protoforge | Hacked Alien Tech Used ----------------- Integrated Dissipator Core Cannon Achievements -------------- Definitely A Prototype Challenges ------------ None Game ------ Seed HeatChainObliterator Manual? 0 Play Time 03:51:39 Cumulative 359.6 hours Start 2026.03.26 @ 21:03:46 End 2026.03.27 @ 01:25:57 Sessions 1 Manual Loads 0 Difficulty Rogue Special Mode None Game No. 279 Rogue 279 Adventurer 0 Explorer 0 Win Type - Total 20 Types 11/0/7/2/0/0/0/0/0/0 Lore% 87 Gallery% 76 Achievement% 66 Wizard Run 0 Options --------- Layout 1 ASCII 0 Keyboard 0 Movement Numpad Keybinds 0 Fullscreen 1 Font 32/SmallcapsGlow Map View 77x35 Zoom Use 0% Tactical HUD 1 Map Filters NONE Filters NONE Steam 1 RUN: 57b030c5-3b8e-4970-947b-aada0b4a81bb